Workbook

Sheet Setup
A1: Μέγεθος ταμπλό: | B1: 32 | D1: Θέσεις | E1: seed | H1: 0 | I1: seed | J1: space pos | K1: Index | L1: Value
D2: 3-4 | E2: =VALUE(LEFT(F2,1)) -> 3 | F2: 3 4 | H2: =IF(I2="-","-",IF(I2>0,H1+1,0)) -> 0 | I2: =IF(J2>0,VALUE(MID($A$32,1,J2-1)),"-") -> 0 | J2: =IF(LEN($A$32)>1,FIND(" ",$A$32,1),0) -> 2 | K2: 0 | L2: 0
A3: Διοργανωτής: | B3: Ζ΄ ΕΝΩΣΗ | E3: =VALUE(RIGHT(F2,1)) -> 4 | H3: 0 | I3: =IF(J3>0,VALUE(MID($A$32,J2+1,J3-J2-1)),"-") -> 0 | J3: =IF(AND(J2>0,LEN($A$32)>J2+1),FIND(" ",$A$32,J2+1),0) -> 4 | K3: 0 | L3: 0
A4: Τίτλος Τουρνουά: | B4: 3ο Ε3 2016 | D4: Θέσεις | E4: seed | H4: 0 | I4: 0 | J4: 6 | K4: 0 | L4: 0
A5: grade: | B5: e3 | D5: 5-8 | E5: =TRIM(LEFT(F5,(FIND(" ",F5,1)-1))) -> 6 | F5: 6 7 5 8 | H5: 0 | I5: 0 | J5: 8 | K5: 0 | L5: 0
A6: age: | B6: 12 | E6: =TRIM(MID(F5,(FIND(" ",F5,1)),FIND(" ",F5,(FIND(" ",F5,1)+1))-(FIND(" ",F5,1)))) -> 7 | H6: 0 | I6: 0 | J6: 10 | K6: 0 | L6: 0
A7: Έδρα αγώνων: | B7: Γ.Σ. ΛΙΒΥΚΟΣ ΙΕΡΑΠ. | E7: =TRIM(MID(F5, (FIND(" ",F5,(FIND(" ",F5,1)+1))+1), (FIND(" ",F5,(FIND(" ",F5,(FIND(" ",F5,1)+1))+1)))-(FIND(" ",F5,(FIND(" ",F5,1)+1))+1))) -> 5 | H7: 0 | I7: 0 | J7: 12 | K7: 0 | L7: 0
A8: Κατηγορία: | B8: Α12 | E8: =TRIM(RIGHT(F5,LEN(F5)-(FIND(" ",F5,(FIND(" ",F5,(FIND(" ",F5,1)+1))+1))))) -> 8 | H8: 1 | I8: 1 | J8: 14 | K8: 1 | L8: 1
A9: Έναρξη: | B9: 22 | H9: 2 | I9: 2 | J9: 16 | K9: 2 | L9: 2
A10: Λήξη: | B10: 23 Οκτωβρίου | H10: 3 | I10: 3 | J10: 18 | K10: 3 | L10: 3
A11: Επιδιατητής: | B11: Κ. Χατζηδάκης | H11: 4 | I11: =IF(J11>0,VALUE(MID($A$32,J10+1,J11-J10-1)),"-") -> 4 | J11: 20 | K11: 4 | L11: 4
A12: Τηλέφωνο επιδ: | B12: 6948254785 | H12: =IF(I12="-","-",IF(I12>0,H11+1,0)) -> 5 | I12: 5 | J12: 22 | K12: 5 | L12: 5
H13: 6 | I13: 6 | J13: 24 | K13: 6 | L13: 6
H14: 7 | I14: 7 | J14: 26 | K14: 7 | L14: 7
H15: 8 | I15: 8 | J15: 28 | K15: 8 | L15: 8
H16: 9 | I16: 18 | J16: 31 | K16: 9 | L16: 18
A17: Main Draw | B17: ="("&COUNTBLANK(DrawPrep!D3:D34)&")" -> (6) | H17: 10 | I17: 9 | J17: 33 | K17: 10 | L17: 9
A18: Πλήθος bye (0-15): | B18: =COUNTBLANK(DrawPrep!D3:D34) -> 6 | H18: 11 | I18: 10 | J18: 36 | K18: 11 | L18: 10
A19: Αριθμός θέσεων seeded: | B19: 8 | H19: 12 | I19: 26 | J19: 39 | K19: 12 | L19: 26
H20: 13 | I20: 21 | J20: 42 | K20: 13 | L20: 21
H21: 14 | I21: 25 | J21: 45 | K21: 14 | L21: 25
H22: 15 | I22: 20 | J22: 48 | K22: 15 | L22: 20
H23: 16 | I23: 22 | J23: 51 | K23: 16 | L23: 22
A24: md (# για off) | B24: ok | H24: 17 | I24: 12 | J24: 54 | K24: 17 | L24: 12
H25: 18 | I25: 19 | J25: 57 | K25: 18 | L25: 19
A26: =RandUniq(3,4,2) -> 4 3 | H26: 19 | I26: 17 | J26: 60 | K26: 19 | L26: 17
A27: =RandUniq(5,8,4) -> 5 6 7 8 | H27: 20 | I27: 11 | J27: 63 | K27: 20 | L27: 11
H28: 21 | I28: 15 | J28: 66 | K28: 21 | L28: 15
A29: =CONCATENATE(LEFT($A$34,$B$18*2),LEFT($A$33,$B$19*2),RandUniq($B$19+1,32-$B$18,32-$B$19-$B$18)," ") -> 0 0 0 0 0 0 1 2 3 4 5 6 7 8 24 13 22 10 21 16 12 18 15 14 19 9 23 17 20 25 26 11 | H29: 22 | I29: 23 | J29: 69 | K29: 22 | L29: 23
H30: 23 | I30: 16 | J30: 72 | K30: 23 | L30: 16
H31: 24 | I31: 14 | J31: 75 | K31: 24 | L31: 14
A32: 0 0 0 0 0 0 1 2 3 4 5 6 7 8 18 9 10 26 21 25 20 22 12 19 17 11 15 23 16 14 24 13 | H32: 25 | I32: 24 | J32: 78 | K32: 25 | L32: 24
A33: 1 2 3 4 5 6 7 8 | H33: 26 | I33: 13 | J33: 81 | K33: 26 | L33: 13
A34: 0 0 0 0 0 0 0 0 0 0 0 0 0 0 0 0 0 0 0 0 0 0 0 0 0 0 0 0 0 0 0 0 0 0 0 0 0 0 0 0

Sheet DrawPrep
A1: =Setup!$B$3 & ", " & Setup!$B$4 & ", " & Setup!$B$7 & ", " & Setup!$B$9 & "-" & Setup!$B$10 -> Ζ΄ ΕΝΩΣΗ, 3ο Ε3 2016, Γ.Σ. ΛΙΒΥΚΟΣ ΙΕΡΑΠ., 22-23 Οκτωβρίου | H1: =Setup!B8 -> Α12
A2: α/α | B2: από | C2: Α.Μ. | D2: Ονοματεπώνυμο | E2: Σύλλογος | F2: βαθμοί | G2: Τηλέφωνο | H2: Υπογραφή | I2: SortPts | J2: Rnd
A3: 1 | C3: 31617 | D3: ΜΑΤΣΑΜΑΚΗΣ ΕΛΕΥΘΕΡΙΟΣ | E3: Ο.Α.ΧΑΝΙΩΝ | F3: 41 | I3: =IF(D3>" ",F3+J3,0) -> 41.00225916 | J3: 0.002259164629
A4: 2 | C4: 36263 | D4: ΜΑΝΔΑΛΕΝΑΚΗΣ ΑΝΑΣΤΑΣΙΟΣ | E4: ΗΡΑΚΛΕΙΟ Ο.Α.& Α. | F4: 28 | I4: 28.0013782 | J4: 0.001378200434
A5: 3 | C5: 36456 | D5: ΓΕΝΝΑΡΑΚΗΣ ΝΙΚΟΛΑΟΣ | E5: ΗΡΑΚΛΕΙΟ Ο.Α.& Α. | F5: 26 | I5: 26.00279213 | J5: 0.002792129153
A6: 4 | C6: 33396 | D6: ΖΕΡΒΟΣ ΣΤΥΛΙΑΝΟΣ | E6: Ο.Α.ΧΑΝΙΩΝ | F6: 21.5 | I6: 21.50377208 | J6: 0.003772078197
A7: 5 | C7: 37032 | D7: ΧΑΛΑΚΑΤΕΒΑΚΗΣ ΑΠΟΣΤΟΛΟΣ | E7: Ο.Α.ΧΑΝΙΩΝ | F7: 19.5 | I7: 19.50155565 | J7: 0.001555645608
A8: 6 | C8: 32350 | D8: ΠΕΤΡΑΚΗΣ ΣΤΥΛΙΑΝΟΣ | E8: Ο.Α.ΧΑΝΙΩΝ | F8: 17.5 | I8: 17.50367015 | J8: 0.003670153316
A9: 7 | C9: 37665 | D9: ΚΟΚΚΙΝΑΚΗΣ ΓΕΩΡΓΙΟΣ | E9: Ο.Α.ΧΑΝΙΩΝ | F9: 17 | I9: 17.00287147 | J9: 0.002871469878
A10: 8 | C10: 35629 | D10: ΣΠΥΡΟΠΟΥΛΟΣ ΝΙΚΟΛΑΟΣ | E10: Ο.Α.ΡΕΘΥΜΝΟΥ | F10: 14.5 | I10: 14.5005133 | J10: 0.0005132963931
A11: 9 | C11: 33295 | D11: ΒΟΛΤΥΡΑΚΗΣ ΕΥΤΥΧΙΟΣ | E11: Ο.Α.ΧΑΝΙΩΝ | F11: 13 | I11: 13.0037231 | J11: 0.003723098748
A12: 10 | C12: 36550 | D12: ΠΕΡΔΙΚΑΚΗΣ ΕΜΜΑΝΟΥΗΛ | E12: Γ.Σ.ΛΙΒΥΚΟΣ ΙΕΡΑΠΕΤΡΑΣ | F12: 11 | I12: 11.00373729 | J12: 0.003737290436
A13: 11 | C13: 37669 | D13: ΜΑΡΑΚΗΣ ΜΙΧΑΗΛ | E13: Ο.Α.ΧΑΝΙΩΝ | F13: 10.5 | I13: 10.50022699 | J13: 0.0002269881328
A14: 12 | C14: 37990 | D14: ΝΙΝΟΣ ΝΙΚΟΛΑΟΣ | E14: Ο.Α.ΡΕΘΥΜΝΟΥ | F14: 7.5 | I14: 7.501386922 | J14: 0.001386922343
A15: 13 | C15: 37664 | D15: ΚΑΫΜΕΝΑΚΗΣ ΑΡΙΣΤΟΤΕΛΗΣ | E15: Ο.Α.ΧΑΝΙΩΝ | F15: 7.25 | I15: 7.251070344 | J15: 0.001070344146
A16: 14 | C16: 33985 | D16: ΤΣΙΤΟΥΝΗΣ ΜΙΧΑΛΗΣ | E16: ΦΙΛΙΑ Τ.Κ. | F16: 5 | I16: 5.003112056 | J16: 0.003112055596
A17: 15 | C17: 37471 | D17: ΞΙΑΡΧΟΣ ΕΜΜΑΝΟΥΗΛ | E17: Α.Ο.ΛΑΤΩ ΑΓ.ΝΙΚΟΛΑΟΥ | F17: 2.5 | I17: 2.503357696 | J17: 0.003357696022
A18: 16 | C18: 38697 | D18: ΤΑΒΕΡΝΑΡΑΚΗΣ ΕΜΜΑΝΟΥΗΛ | E18: ΗΡΑΚΛΕΙΟ Ο.Α.& Α. | F18: 2 | I18: 2.000572284 | J18: 0.000572284311
A19: 17 | C19: 33835 | D19: ΒΕΓΟΠΟΥΛΟΣ ΧΑΡΑΛΑΜΠΟΣ | E19: ΦΙΛΙΑ Τ.Κ. | F19: 1.5 | I19: 1.500872172 | J19: 0.0008721719894
A20: 18 | C20: 37805 | D20: ΚΩΣΤΑΚΗΣ ΕΜΜΑΝΟΥΗΛ | E20: ΗΡΑΚΛΕΙΟ Ο.Α.& Α. | F20: 1 | I20: 1.000553153 | J20: 0.0005531534999
A21: 19 | C21: 37562 | D21: ΣΤΡΟΜΠΑ ΙΩΣΗΦ-ΛΑΥΡΕΝΤΗΣ | E21: Ο.Α.ΧΑΝΙΩΝ | F21: 0 | I21: 0.003975675464 | J21: 0.003975675464
A22: 20 | C22: 37801 | D22: ΚΑΡΑΚΩΣΤΑΣ ΣΠΥΡΙΔΩΝ | E22: ΗΡΑΚΛΕΙΟ Ο.Α.& Α. | F22: 0 | I22: 0.002625989945 | J22: 0.002625989945
A23: 21 | C23: 38042 | D23: ΜΠΟΥΝΑΚΗΣ ΔΗΜΗΤΡΙΟΣ | E23: ΗΡΑΚΛΕΙΟ Ο.Α.& Α. | F23: 0 | I23: 0.002319063447 | J23: 0.002319063447
A24: 22 | C24: 37800 | D24: ΒΕΛΕΝΤΑΚΗΣ ΙΩΑΝΝΗΣ | E24: ΗΡΑΚΛΕΙΟ Ο.Α.& Α. | F24: 0 | I24: 0.002238870227 | J24: 0.002238870227
A25: 23 | C25: 38017 | D25: ΝΕΚΤΑΡΙΟΣ ΑΘΑΝΑΣΙΟΣ | E25: ΗΡΑΚΛΕΙΟ Ο.Α.& Α. | F25: 0 | I25: 0.002007376119 | J25: 0.002007376119
A26: 24 | C26: 36616 | D26: ΚΟΚΚΑΛΗΣ ΣΤΥΛΙΑΝΟΣ | E26: Γ.Σ.ΛΙΒΥΚΟΣ ΙΕΡΑΠΕΤΡΑΣ | F26: 0 | I26: 0.001776597738 | J26: 0.001776597738
A27: 25 | C27: 37803 | D27: ΚΑΛΑΤΖΗΣ ΑΛΕΞΑΝΔΡΟΣ | E27: ΗΡΑΚΛΕΙΟ Ο.Α.& Α. | F27: 0 | I27: 0.001636881073 | J27: 0.001636881073
A28: 26 | C28: 37561 | D28: ΦΟΥΝΤΟΥΛΑΚΗΣ ΝΙΚΟΛΑΟΣ | E28: Ο.Α.ΧΑΝΙΩΝ | F28: 0 | I28: 0.0007973197529 | J28: 0.0007973197529
A29: 27 | I29: 0 | J29: 0.000428571854
A30: 28 | I30: 0 | J30: 0.001262502627
A31: 29 | I31: 0 | J31: 0.003104409675
A32: 30 | I32: 0 | J32: 0.0002623477704
A33: 31 | I33: 0 | J33: 0.002895205983
A34: 32 | I34: 0 | J34: 0.00258709824
B37: Walk over | E37: med | H37: επιδιαιτητής
B38: α/α | C38: Α.Μ. | D38: Ονοματεπώνυμο | E38: Ν ή Ο | H38: =Setup!$B$11 -> Κ. Χατζηδάκης
B39: 1 | C39: 37862 | D39: ΚΟΥΓΙΟΥΜΟΥΤΖΗΣ ΚΩΝΣΤΑΝΤΙΝΟΣ | E39: Ο
B40: 2
B41: 3
B42: 4
B43: 5

Sheet MD
A1: =Setup!B3 & ", " & Setup!B4 & ", " & Setup!B7 & ", " & Setup!B9 & "-" & Setup!B10 -> Ζ΄ ΕΝΩΣΗ, 3ο Ε3 2016, Γ.Σ. ΛΙΒΥΚΟΣ ΙΕΡΑΠ., 22-23 Οκτωβρίου | X1: =Setup!B8 -> Α12
B2: =Setup!B18 -> 6
J3: 32 | O3: 16 | R3: 8 | U3: 4 | X3: 2 & w
A4: α/α | C4: ByeOrder | D4: ByeSum | E4: ByeCnt | F4: από | G4: seed | H4: Pts | I4: Α.Μ. | J4: Ονοματεπώνυμο | K4: επώνυμο | L4: Σύλλογος
A5: 1 | B5: 1 | E5: 0 | F5: =IF(NOT($G5="-"),VLOOKUP($G5,DrawPrep!$A$3:$F$34,2,FALSE),"") -> 0 | G5: =VLOOKUP($B5,Setup!$K$2:$L$33,2,FALSE) -> 1 | H5: =IF($G5>0,VLOOKUP($G5,DrawPrep!$A$3:$F$34,6,FALSE),0) -> 41 | I5: =IF(Setup!$B$24="#",0,IF($G5>0,VLOOKUP($G5,DrawPrep!$A$3:$F$34,3,FALSE),0)) -> 31617 | J5: =IF($I5>0,VLOOKUP($I5,DrawPrep!$C$3:$F$34,2,FALSE),"bye") -> ΜΑΤΣΑΜΑΚΗΣ ΕΛΕΥΘΕΡΙΟΣ | K5: =IF(NOT(I5>0),"", IF(ISERROR(FIND("-",J5)), LEFT(J5,FIND(" ",J5)-1), IF(FIND("-",J5)>FIND(" ",J5),LEFT(J5,FIND(" ",J5)-1), LEFT(J5,FIND("-",J5)-1) ))) -> ΜΑΤΣΑΜΑΚΗΣ | L5: =IF($I5>0,VLOOKUP($I5,DrawPrep!$C$3:$F$34,3,FALSE),"") -> Ο.Α.ΧΑΝΙΩΝ | M5: 1 | N5: =IF((OR(M5=1,M5=2)),IF(M5=1,I5,I6),"") -> 31617 | O5: =UPPER(IF($A$2="R",IF(OR(M5=1,M5="a"),I5,IF(OR(M5=2,M5="b"),I6,"")),IF(OR(M5=1,M5="1"),K5,IF(OR(M5=2,M5="b"),K6,"")))) -> ΜΑΤΣΑΜΑΚΗΣ
A6: 2 | B6: =1-D6+8 -> 8 | C6: =B5 -> 1 | D6: =E6 -> 1 | E6: =IF($B$2>=C6,1,0) -> 1 | F6: =IF(NOT($G6="-"),VLOOKUP($G6,DrawPrep!$A$3:$F$34,2,FALSE),"") ->  | G6: =IF($B$2>=C6,"-",VLOOKUP($B6,Setup!$K$2:$L$33,2,FALSE)) -> - | H6: =IF(NOT($G6="-"),VLOOKUP($G6,DrawPrep!$A$3:$F$34,6,FALSE),0) -> 0 | I6: =IF(Setup!$B$24="#",0,IF(NOT($G6="-"),VLOOKUP($G6,DrawPrep!$A$3:$F$34,3,FALSE),0)) -> 0 | J6: =IF($I6>0,VLOOKUP($I6,DrawPrep!$C$3:$F$34,2,FALSE),"bye") -> bye | K6: =IF(NOT(I6>0),"", IF(ISERROR(FIND("-",J6)), LEFT(J6,FIND(" ",J6)-1), IF(FIND("-",J6)>FIND(" ",J6),LEFT(J6,FIND(" ",J6)-1), LEFT(J6,FIND("-",J6)-1) ))) ->  | L6: =IF($I6>0,VLOOKUP($I6,DrawPrep!$C$3:$F$34,3,FALSE),"") ->  | P6: 1 | Q6: =IF((OR(P6=1,P6=2)),IF(P6=1,N5,N7),"") -> 31617 | R6: =UPPER(IF($A$2="R",IF(OR(P6=1,P6="a"),O5,IF(OR(P6=2,P6="b"),O7,"")),IF(OR(P6=1,P6="a"),O5,IF(OR(P6=2,P6="b"),O7,"")))) -> ΜΑΤΣΑΜΑΚΗΣ
A7: 3 | B7: =2-D7+8 -> 9 | D7: =D6+E7 -> 1 | E7: 0 | F7: =IF(NOT($G7="-"),VLOOKUP($G7,DrawPrep!$A$3:$F$34,2,FALSE),"") -> 0 | G7: =VLOOKUP($B7,Setup!$K$2:$L$33,2,FALSE) -> 18 | H7: =IF($G7>0,VLOOKUP($G7,DrawPrep!$A$3:$F$34,6,FALSE),0) -> 1 | I7: =IF(Setup!$B$24="#",0,IF($G7>0,VLOOKUP($G7,DrawPrep!$A$3:$F$34,3,FALSE),0)) -> 37805 | J7: =IF($I7>0,VLOOKUP($I7,DrawPrep!$C$3:$F$34,2,FALSE),"bye") -> ΚΩΣΤΑΚΗΣ ΕΜΜΑΝΟΥΗΛ | K7: ΚΩΣΤΑΚΗΣ | L7: =IF($I7>0,VLOOKUP($I7,DrawPrep!$C$3:$F$34,3,FALSE),"") -> ΗΡΑΚΛΕΙΟ Ο.Α.& Α. | M7: 2 | N7: =IF((OR(M7=1,M7=2)),IF(M7=1,I7,I8),"") -> 33295 | O7: =UPPER(IF($A$2="R",IF(OR(M7=1,M7="a"),I7,IF(OR(M7=2,M7="b"),I8,"")),IF(OR(M7=1,M7="a"),K7,IF(OR(M7=2,M7="b"),K8,"")))) -> ΒΟΛΤΥΡΑΚΗΣ | R7: 40 40
A8: 4 | B8: =3-D8+8 -> 10 | C8: 15 | D8: =D7+E8 -> 1 | E8: =IF($B$2>=C8,1,0) -> 0 | F8: =IF(NOT($G8="-"),VLOOKUP($G8,DrawPrep!$A$3:$F$34,2,FALSE),"") -> 0 | G8: =IF($B$2>=C8,"-",VLOOKUP($B8,Setup!$K$2:$L$33,2,FALSE)) -> 9 | H8: =IF(NOT($G8="-"),VLOOKUP($G8,DrawPrep!$A$3:$F$34,6,FALSE),0) -> 13 | I8: =IF(Setup!$B$24="#",0,IF(NOT($G8="-"),VLOOKUP($G8,DrawPrep!$A$3:$F$34,3,FALSE),0)) -> 33295 | J8: =IF($I8>0,VLOOKUP($I8,DrawPrep!$C$3:$F$34,2,FALSE),"bye") -> ΒΟΛΤΥΡΑΚΗΣ ΕΥΤΥΧΙΟΣ | K8: ΒΟΛΤΥΡΑΚΗΣ | L8: =IF($I8>0,VLOOKUP($I8,DrawPrep!$C$3:$F$34,3,FALSE),"") -> Ο.Α.ΧΑΝΙΩΝ | O8: 54(4) 42 | S8: 1 | T8: =IF((OR(S8=1,S8=2)),IF(S8=1,Q6,Q10),"") -> 31617 | U8: =UPPER(IF($A$2="R",IF(OR(S8=1,S8="a"),R6,IF(OR(S8=2,S8="b"),R10,"")),IF(OR(S8=1,S8="a"),R6,IF(OR(S8=2,S8="b"),R10,"")))) -> ΜΑΤΣΑΜΑΚΗΣ
A9: 5 | B9: =4-D9+8 -> 11 | D9: 1 | E9: 0 | F9: =IF(NOT($G9="-"),VLOOKUP($G9,DrawPrep!$A$3:$F$34,2,FALSE),"") -> 0 | G9: =VLOOKUP($B9,Setup!$K$2:$L$33,2,FALSE) -> 10 | H9: =IF($G9>0,VLOOKUP($G9,DrawPrep!$A$3:$F$34,6,FALSE),0) -> 11 | I9: =IF(Setup!$B$24="#",0,IF($G9>0,VLOOKUP($G9,DrawPrep!$A$3:$F$34,3,FALSE),0)) -> 36550 | J9: =IF($I9>0,VLOOKUP($I9,DrawPrep!$C$3:$F$34,2,FALSE),"bye") -> ΠΕΡΔΙΚΑΚΗΣ ΕΜΜΑΝΟΥΗΛ | K9: ΠΕΡΔΙΚΑΚΗΣ | L9: =IF($I9>0,VLOOKUP($I9,DrawPrep!$C$3:$F$34,3,FALSE),"") -> Γ.Σ.ΛΙΒΥΚΟΣ ΙΕΡΑΠΕΤΡΑΣ | M9: 1 | N9: =IF((OR(M9=1,M9=2)),IF(M9=1,I9,I10),"") -> 36550 | O9: =UPPER(IF($A$2="R",IF(OR(M9=1,M9="a"),I9,IF(OR(M9=2,M9="b"),I10,"")),IF(OR(M9=1,M9="a"),K9,IF(OR(M9=2,M9="b"),K10,"")))) -> ΠΕΡΔΙΚΑΚΗΣ | U9: 40 41
A10: 6 | B10: =5-D10+8 -> 12 | C10: 9 | D10: 1 | E10: =IF($B$2>=C10,1,0) -> 0 | F10: =IF(NOT($G10="-"),VLOOKUP($G10,DrawPrep!$A$3:$F$34,2,FALSE),"") -> 0 | G10: =IF($B$2>=C10,"-",VLOOKUP($B10,Setup!$K$2:$L$33,2,FALSE)) -> 26 | H10: =IF(NOT($G10="-"),VLOOKUP($G10,DrawPrep!$A$3:$F$34,6,FALSE),0) -> 0 | I10: =IF(Setup!$B$24="#",0,IF(NOT($G10="-"),VLOOKUP($G10,DrawPrep!$A$3:$F$34,3,FALSE),0)) -> 37561 | J10: =IF($I10>0,VLOOKUP($I10,DrawPrep!$C$3:$F$34,2,FALSE),"bye") -> ΦΟΥΝΤΟΥΛΑΚΗΣ ΝΙΚΟΛΑΟΣ | K10: ΦΟΥΝΤΟΥΛΑΚΗΣ | L10: =IF($I10>0,VLOOKUP($I10,DrawPrep!$C$3:$F$34,3,FALSE),"") -> Ο.Α.ΧΑΝΙΩΝ | O10: 40 30 ret | P10: 2 | Q10: =IF((OR(P10=1,P10=2)),IF(P10=1,N9,N11),"") -> 32350 | R10: =UPPER(IF($A$2="R",IF(OR(P10=1,P10="a"),O9,IF(OR(P10=2,P10="b"),O11,"")),IF(OR(P10=1,P10="a"),O9,IF(OR(P10=2,P10="b"),O11,"")))) -> ΠΕΤΡΑΚΗΣ
A11: 7 | B11: =6-D11+8 -> 12 | C11: =B12 -> 6 | D11: 2 | E11: =IF($B$2>=C11,1,0) -> 1 | F11: =IF(NOT($G11="-"),VLOOKUP($G11,DrawPrep!$A$3:$F$34,2,FALSE),"") ->  | G11: =IF($B$2>=C11,"-",VLOOKUP($B11,Setup!$K$2:$L$33,2,FALSE)) -> - | H11: =IF(NOT($G11="-"),VLOOKUP($G11,DrawPrep!$A$3:$F$34,6,FALSE),0) -> 0 | I11: =IF(Setup!$B$24="#",0,IF(NOT($G11="-"),VLOOKUP($G11,DrawPrep!$A$3:$F$34,3,FALSE),0)) -> 0 | J11: =IF($I11>0,VLOOKUP($I11,DrawPrep!$C$3:$F$34,2,FALSE),"bye") -> bye | L11: =IF($I11>0,VLOOKUP($I11,DrawPrep!$C$3:$F$34,3,FALSE),"") ->  | M11: 2 | N11: =IF((OR(M11=1,M11=2)),IF(M11=1,I11,I12),"") -> 32350 | O11: =UPPER(IF($A$2="R",IF(OR(M11=1,M11="a"),I11,IF(OR(M11=2,M11="b"),I12,"")),IF(OR(M11=1,M11="a"),K11,IF(OR(M11=2,M11="b"),K12,"")))) -> ΠΕΤΡΑΚΗΣ | R11: 42 41
A12: 8 | B12: =VALUE(Setup!E5) -> 6 | D12: 2 | E12: 0 | F12: =IF(NOT($G12="-"),VLOOKUP($G12,DrawPrep!$A$3:$F$34,2,FALSE),"") -> 0 | G12: =VLOOKUP($B12,Setup!$K$2:$L$33,2,FALSE) -> 6 | H12: =IF($G12>0,VLOOKUP($G12,DrawPrep!$A$3:$F$34,6,FALSE),0) -> 17.5 | I12: =IF(Setup!$B$24="#",0,IF($G12>0,VLOOKUP($G12,DrawPrep!$A$3:$F$34,3,FALSE),0)) -> 32350 | J12: =IF($I12>0,VLOOKUP($I12,DrawPrep!$C$3:$F$34,2,FALSE),"bye") -> ΠΕΤΡΑΚΗΣ ΣΤΥΛΙΑΝΟΣ | K12: ΠΕΤΡΑΚΗΣ | L12: =IF($I12>0,VLOOKUP($I12,DrawPrep!$C$3:$F$34,3,FALSE),"") -> Ο.Α.ΧΑΝΙΩΝ | V12: 1 | W12: =IF((OR(V12=1,V12=2)),IF(V12=1,T8,T16),"") -> 31617 | X12: =UPPER(IF($A$2="R",IF(OR(V12=1,V12="a"),U8,IF(OR(V12=2,V12="b"),U16,"")),IF(OR(V12=1,V12="a"),U8,IF(OR(V12=2,V12="b"),U16,"")))) -> ΜΑΤΣΑΜΑΚΗΣ
A13: 9 | B13: =VALUE(Setup!E2) -> 3 | D13: 2 | E13: 0 | F13: =IF(NOT($G13="-"),VLOOKUP($G13,DrawPrep!$A$3:$F$34,2,FALSE),"") -> 0 | G13: =VLOOKUP($B13,Setup!$K$2:$L$33,2,FALSE) -> 3 | H13: =IF($G13>0,VLOOKUP($G13,DrawPrep!$A$3:$F$34,6,FALSE),0) -> 26 | I13: =IF(Setup!$B$24="#",0,IF($G13>0,VLOOKUP($G13,DrawPrep!$A$3:$F$34,3,FALSE),0)) -> 36456 | J13: =IF($I13>0,VLOOKUP($I13,DrawPrep!$C$3:$F$34,2,FALSE),"bye") -> ΓΕΝΝΑΡΑΚΗΣ ΝΙΚΟΛΑΟΣ | K13: ΓΕΝΝΑΡΑΚΗΣ | L13: =IF($I13>0,VLOOKUP($I13,DrawPrep!$C$3:$F$34,3,FALSE),"") -> ΗΡΑΚΛΕΙΟ Ο.Α.& Α. | M13: 1 | N13: =IF((OR(M13=1,M13=2)),IF(M13=1,I13,I14),"") -> 36456 | O13: =UPPER(IF($A$2="R",IF(OR(M13=1,M13="a"),I13,IF(OR(M13=2,M13="b"),I14,"")),IF(OR(M13=1,M13="a"),K13,IF(OR(M13=2,M13="b"),K14,"")))) -> ΓΕΝΝΑΡΑΚΗΣ | X13: 61 63
A14: 10 | B14: =7-D14+8 -> 12 | C14: =B13 -> 3 | D14: 3 | E14: =IF($B$2>=C14,1,0) -> 1 | F14: =IF(NOT($G14="-"),VLOOKUP($G14,DrawPrep!$A$3:$F$34,2,FALSE),"") ->  | G14: =IF($B$2>=C14,"-",VLOOKUP($B14,Setup!$K$2:$L$33,2,FALSE)) -> - | H14: =IF(NOT($G14="-"),VLOOKUP($G14,DrawPrep!$A$3:$F$34,6,FALSE),0) -> 0 | I14: =IF(Setup!$B$24="#",0,IF(NOT($G14="-"),VLOOKUP($G14,DrawPrep!$A$3:$F$34,3,FALSE),0)) -> 0 | J14: =IF($I14>0,VLOOKUP($I14,DrawPrep!$C$3:$F$34,2,FALSE),"bye") -> bye | L14: =IF($I14>0,VLOOKUP($I14,DrawPrep!$C$3:$F$34,3,FALSE),"") ->  | P14: 1 | Q14: =IF((OR(P14=1,P14=2)),IF(P14=1,N13,N15),"") -> 36456 | R14: =UPPER(IF($A$2="R",IF(OR(P14=1,P14="a"),O13,IF(OR(P14=2,P14="b"),O15,"")),IF(OR(P14=1,P14="a"),O13,IF(OR(P14=2,P14="b"),O15,"")))) -> ΓΕΝΝΑΡΑΚΗΣ
A15: 11 | B15: =8-D15+8 -> 13 | D15: 3 | E15: 0 | F15: =IF(NOT($G15="-"),VLOOKUP($G15,DrawPrep!$A$3:$F$34,2,FALSE),"") -> 0 | G15: =VLOOKUP($B15,Setup!$K$2:$L$33,2,FALSE) -> 21 | H15: =IF($G15>0,VLOOKUP($G15,DrawPrep!$A$3:$F$34,6,FALSE),0) -> 0 | I15: =IF(Setup!$B$24="#",0,IF($G15>0,VLOOKUP($G15,DrawPrep!$A$3:$F$34,3,FALSE),0)) -> 38042 | J15: =IF($I15>0,VLOOKUP($I15,DrawPrep!$C$3:$F$34,2,FALSE),"bye") -> ΜΠΟΥΝΑΚΗΣ ΔΗΜΗΤΡΙΟΣ | K15: ΜΠΟΥΝΑΚΗΣ | L15: =IF($I15>0,VLOOKUP($I15,DrawPrep!$C$3:$F$34,3,FALSE),"") -> ΗΡΑΚΛΕΙΟ Ο.Α.& Α. | M15: 1 | N15: =IF((OR(M15=1,M15=2)),IF(M15=1,I15,I16),"") -> 38042 | O15: =UPPER(IF($A$2="R",IF(OR(M15=1,M15="a"),I15,IF(OR(M15=2,M15="b"),I16,"")),IF(OR(M15=1,M15="a"),K15,IF(OR(M15=2,M15="b"),K16,"")))) -> ΜΠΟΥΝΑΚΗΣ | R15: 42 40
A16: 12 | B16: =9-D16+8 -> 14 | C16: 13 | D16: 3 | E16: =IF($B$2>=C16,1,0) -> 0 | F16: =IF(NOT($G16="-"),VLOOKUP($G16,DrawPrep!$A$3:$F$34,2,FALSE),"") -> 0 | G16: =IF($B$2>=C16,"-",VLOOKUP($B16,Setup!$K$2:$L$33,2,FALSE)) -> 25 | H16: =IF(NOT($G16="-"),VLOOKUP($G16,DrawPrep!$A$3:$F$34,6,FALSE),0) -> 0 | I16: =IF(Setup!$B$24="#",0,IF(NOT($G16="-"),VLOOKUP($G16,DrawPrep!$A$3:$F$34,3,FALSE),0)) -> 37803 | J16: =IF($I16>0,VLOOKUP($I16,DrawPrep!$C$3:$F$34,2,FALSE),"bye") -> ΚΑΛΑΤΖΗΣ ΑΛΕΞΑΝΔΡΟΣ | K16: ΚΑΛΑΤΖΗΣ | L16: =IF($I16>0,VLOOKUP($I16,DrawPrep!$C$3:$F$34,3,FALSE),"") -> ΗΡΑΚΛΕΙΟ Ο.Α.& Α. | O16: 53 54(4) | S16: 1 | T16: =IF((OR(S16=1,S16=2)),IF(S16=1,Q14,Q18),"") -> 36456 | U16: =UPPER(IF($A$2="R",IF(OR(S16=1,S16="a"),R14,IF(OR(S16=2,S16="b"),R18,"")),IF(OR(S16=1,S16="a"),R14,IF(OR(S16=2,S16="b"),R18,"")))) -> ΓΕΝΝΑΡΑΚΗΣ
A17: 13 | B17: =10-D17+8 -> 15 | D17: 3 | E17: 0 | F17: =IF(NOT($G17="-"),VLOOKUP($G17,DrawPrep!$A$3:$F$34,2,FALSE),"") -> 0 | G17: =VLOOKUP($B17,Setup!$K$2:$L$33,2,FALSE) -> 20 | H17: =IF($G17>0,VLOOKUP($G17,DrawPrep!$A$3:$F$34,6,FALSE),0) -> 0 | I17: =IF(Setup!$B$24="#",0,IF($G17>0,VLOOKUP($G17,DrawPrep!$A$3:$F$34,3,FALSE),0)) -> 37801 | J17: =IF($I17>0,VLOOKUP($I17,DrawPrep!$C$3:$F$34,2,FALSE),"bye") -> ΚΑΡΑΚΩΣΤΑΣ ΣΠΥΡΙΔΩΝ | K17: ΚΑΡΑΚΩΣΤΑΣ | L17: =IF($I17>0,VLOOKUP($I17,DrawPrep!$C$3:$F$34,3,FALSE),"") -> ΗΡΑΚΛΕΙΟ Ο.Α.& Α. | M17: 1 | N17: =IF((OR(M17=1,M17=2)),IF(M17=1,I17,I18),"") -> 37801 | O17: =UPPER(IF($A$2="R",IF(OR(M17=1,M17="a"),I17,IF(OR(M17=2,M17="b"),I18,"")),IF(OR(M17=1,M17="a"),K17,IF(OR(M17=2,M17="b"),K18,"")))) -> ΚΑΡΑΚΩΣΤΑΣ | U17: 54(10) 53
A18: 14 | B18: =11-D18+8 -> 16 | C18: 11 | D18: 3 | E18: =IF($B$2>=C18,1,0) -> 0 | F18: =IF(NOT($G18="-"),VLOOKUP($G18,DrawPrep!$A$3:$F$34,2,FALSE),"") -> 0 | G18: =IF($B$2>=C18,"-",VLOOKUP($B18,Setup!$K$2:$L$33,2,FALSE)) -> 22 | H18: =IF(NOT($G18="-"),VLOOKUP($G18,DrawPrep!$A$3:$F$34,6,FALSE),0) -> 0 | I18: =IF(Setup!$B$24="#",0,IF(NOT($G18="-"),VLOOKUP($G18,DrawPrep!$A$3:$F$34,3,FALSE),0)) -> 37800 | J18: =IF($I18>0,VLOOKUP($I18,DrawPrep!$C$3:$F$34,2,FALSE),"bye") -> ΒΕΛΕΝΤΑΚΗΣ ΙΩΑΝΝΗΣ | K18: ΒΕΛΕΝΤΑΚΗΣ | L18: =IF($I18>0,VLOOKUP($I18,DrawPrep!$C$3:$F$34,3,FALSE),"") -> ΗΡΑΚΛΕΙΟ Ο.Α.& Α. | O18: 40 40 | P18: 2 | Q18: =IF((OR(P18=1,P18=2)),IF(P18=1,N17,N19),"") -> 37665 | R18: =UPPER(IF($A$2="R",IF(OR(P18=1,P18="a"),O17,IF(OR(P18=2,P18="b"),O19,"")),IF(OR(P18=1,P18="a"),O17,IF(OR(P18=2,P18="b"),O19,"")))) -> ΚΟΚΚΙΝΑΚΗΣ
A19: 15 | B19: =12-D19+8 -> 17 | C19: =B20 -> 7 | D19: 3 | E19: =IF($B$2>=C19,1,0) -> 0 | F19: =IF(NOT($G19="-"),VLOOKUP($G19,DrawPrep!$A$3:$F$34,2,FALSE),"") -> 0 | G19: =IF($B$2>=C19,"-",VLOOKUP($B19,Setup!$K$2:$L$33,2,FALSE)) -> 12 | H19: =IF(NOT($G19="-"),VLOOKUP($G19,DrawPrep!$A$3:$F$34,6,FALSE),0) -> 7.5 | I19: =IF(Setup!$B$24="#",0,IF(NOT($G19="-"),VLOOKUP($G19,DrawPrep!$A$3:$F$34,3,FALSE),0)) -> 37990 | J19: =IF($I19>0,VLOOKUP($I19,DrawPrep!$C$3:$F$34,2,FALSE),"bye") -> ΝΙΝΟΣ ΝΙΚΟΛΑΟΣ | K19: ΝΙΝΟΣ | L19: =IF($I19>0,VLOOKUP($I19,DrawPrep!$C$3:$F$34,3,FALSE),"") -> Ο.Α.ΡΕΘΥΜΝΟΥ | M19: 2 | N19: =IF((OR(M19=1,M19=2)),IF(M19=1,I19,I20),"") -> 37665 | O19: =UPPER(IF($A$2="R",IF(OR(M19=1,M19="a"),I19,IF(OR(M19=2,M19="b"),I20,"")),IF(OR(M19=1,M19="a"),K19,IF(OR(M19=2,M19="b"),K20,"")))) -> ΚΟΚΚΙΝΑΚΗΣ | R19: 40 41
A20: 16 | B20: =VALUE(Setup!E6) -> 7 | D20: 3 | E20: 0 | F20: =IF(NOT($G20="-"),VLOOKUP($G20,DrawPrep!$A$3:$F$34,2,FALSE),"") -> 0 | G20: =VLOOKUP($B20,Setup!$K$2:$L$33,2,FALSE) -> 7 | H20: =IF($G20>0,VLOOKUP($G20,DrawPrep!$A$3:$F$34,6,FALSE),0) -> 17 | I20: =IF(Setup!$B$24="#",0,IF($G20>0,VLOOKUP($G20,DrawPrep!$A$3:$F$34,3,FALSE),0)) -> 37665 | J20: =IF($I20>0,VLOOKUP($I20,DrawPrep!$C$3:$F$34,2,FALSE),"bye") -> ΚΟΚΚΙΝΑΚΗΣ ΓΕΩΡΓΙΟΣ | K20: ΚΟΚΚΙΝΑΚΗΣ | L20: =IF($I20>0,VLOOKUP($I20,DrawPrep!$C$3:$F$34,3,FALSE),"") -> Ο.Α.ΧΑΝΙΩΝ | O20: 4040 | V20: 1 | W20: =IF((OR(V20=1,V20=2)),IF(V20=1,W12,W28),"") -> 31617 | X20: =UPPER(IF($A$2="R",IF(OR(V20=1,V20="a"),X12,IF(OR(V20=2,V20="b"),X28,"")),IF(OR(V20=1,V20="a"),X12,IF(OR(V20=2,V20="b"),X28,"")))) -> ΜΑΤΣΑΜΑΚΗΣ
A21: 17 | B21: =VALUE(Setup!E7) -> 5 | D21: 3 | E21: 0 | F21: =IF(NOT($G21="-"),VLOOKUP($G21,DrawPrep!$A$3:$F$34,2,FALSE),"") -> 0 | G21: =VLOOKUP($B21,Setup!$K$2:$L$33,2,FALSE) -> 5 | H21: =IF($G21>0,VLOOKUP($G21,DrawPrep!$A$3:$F$34,6,FALSE),0) -> 19.5 | I21: =IF(Setup!$B$24="#",0,IF($G21>0,VLOOKUP($G21,DrawPrep!$A$3:$F$34,3,FALSE),0)) -> 37032 | J21: =IF($I21>0,VLOOKUP($I21,DrawPrep!$C$3:$F$34,2,FALSE),"bye") -> ΧΑΛΑΚΑΤΕΒΑΚΗΣ ΑΠΟΣΤΟΛΟΣ | K21: ΧΑΛΑΚΑΤΕΒΑΚΗΣ | L21: =IF($I21>0,VLOOKUP($I21,DrawPrep!$C$3:$F$34,3,FALSE),"") -> Ο.Α.ΧΑΝΙΩΝ | M21: 1 | N21: =IF((OR(M21=1,M21=2)),IF(M21=1,I21,I22),"") -> 37032 | O21: =UPPER(IF($A$2="R",IF(OR(M21=1,M21="a"),I21,IF(OR(M21=2,M21="b"),I22,"")),IF(OR(M21=1,M21="a"),K21,IF(OR(M21=2,M21="b"),K22,"")))) -> ΧΑΛΑΚΑΤΕΒΑΚΗΣ | X21: 62 62
A22: 18 | B22: =13-D22+8 -> 17 | C22: =B21 -> 5 | D22: 4 | E22: =IF($B$2>=C22,1,0) -> 1 | F22: =IF(NOT($G22="-"),VLOOKUP($G22,DrawPrep!$A$3:$F$34,2,FALSE),"") ->  | G22: =IF($B$2>=C22,"-",VLOOKUP($B22,Setup!$K$2:$L$33,2,FALSE)) -> - | H22: =IF(NOT($G22="-"),VLOOKUP($G22,DrawPrep!$A$3:$F$34,6,FALSE),0) -> 0 | I22: =IF(Setup!$B$24="#",0,IF(NOT($G22="-"),VLOOKUP($G22,DrawPrep!$A$3:$F$34,3,FALSE),0)) -> 0 | J22: =IF($I22>0,VLOOKUP($I22,DrawPrep!$C$3:$F$34,2,FALSE),"bye") -> bye | L22: =IF($I22>0,VLOOKUP($I22,DrawPrep!$C$3:$F$34,3,FALSE),"") ->  | P22: 2 | Q22: =IF((OR(P22=1,P22=2)),IF(P22=1,N21,N23),"") -> 37562 | R22: =UPPER(IF($A$2="R",IF(OR(P22=1,P22="a"),O21,IF(OR(P22=2,P22="b"),O23,"")),IF(OR(P22=1,P22="a"),O21,IF(OR(P22=2,P22="b"),O23,"")))) -> ΣΤΡΟΜΠΑ
A23: 19 | B23: =14-D23+8 -> 18 | D23: 4 | E23: 0 | F23: =IF(NOT($G23="-"),VLOOKUP($G23,DrawPrep!$A$3:$F$34,2,FALSE),"") -> 0 | G23: =VLOOKUP($B23,Setup!$K$2:$L$33,2,FALSE) -> 19 | H23: =IF($G23>0,VLOOKUP($G23,DrawPrep!$A$3:$F$34,6,FALSE),0) -> 0 | I23: =IF(Setup!$B$24="#",0,IF($G23>0,VLOOKUP($G23,DrawPrep!$A$3:$F$34,3,FALSE),0)) -> 37562 | J23: =IF($I23>0,VLOOKUP($I23,DrawPrep!$C$3:$F$34,2,FALSE),"bye") -> ΣΤΡΟΜΠΑ ΙΩΣΗΦ-ΛΑΥΡΕΝΤΗΣ | K23: ΣΤΡΟΜΠΑ | L23: =IF($I23>0,VLOOKUP($I23,DrawPrep!$C$3:$F$34,3,FALSE),"") -> Ο.Α.ΧΑΝΙΩΝ | M23: 1 | N23: =IF((OR(M23=1,M23=2)),IF(M23=1,I23,I24),"") -> 37562 | O23: =UPPER(IF($A$2="R",IF(OR(M23=1,M23="a"),I23,IF(OR(M23=2,M23="b"),I24,"")),IF(OR(M23=1,M23="a"),K23,IF(OR(M23=2,M23="b"),K24,"")))) -> ΣΤΡΟΜΠΑ | R23: 42 14 (10-8)
A24: 20 | B24: =15-D24+8 -> 19 | C24: 12 | D24: 4 | E24: =IF($B$2>=C24,1,0) -> 0 | F24: =IF(NOT($G24="-"),VLOOKUP($G24,DrawPrep!$A$3:$F$34,2,FALSE),"") -> 0 | G24: =IF($B$2>=C24,"-",VLOOKUP($B24,Setup!$K$2:$L$33,2,FALSE)) -> 17 | H24: =IF(NOT($G24="-"),VLOOKUP($G24,DrawPrep!$A$3:$F$34,6,FALSE),0) -> 1.5 | I24: =IF(Setup!$B$24="#",0,IF(NOT($G24="-"),VLOOKUP($G24,DrawPrep!$A$3:$F$34,3,FALSE),0)) -> 33835 | J24: =IF($I24>0,VLOOKUP($I24,DrawPrep!$C$3:$F$34,2,FALSE),"bye") -> ΒΕΓΟΠΟΥΛΟΣ ΧΑΡΑΛΑΜΠΟΣ | K24: ΒΕΓΟΠΟΥΛΟΣ | L24: =IF($I24>0,VLOOKUP($I24,DrawPrep!$C$3:$F$34,3,FALSE),"") -> ΦΙΛΙΑ Τ.Κ. | O24: 40 42 | S24: 2 | T24: =IF((OR(S24=1,S24=2)),IF(S24=1,Q22,Q26),"") -> 33396 | U24: =UPPER(IF($A$2="R",IF(OR(S24=1,S24="a"),R22,IF(OR(S24=2,S24="b"),R26,"")),IF(OR(S24=1,S24="a"),R22,IF(OR(S24=2,S24="b"),R26,"")))) -> ΖΕΡΒΟΣ
A25: 21 | B25: =16-D25+8 -> 20 | D25: 4 | E25: 0 | F25: =IF(NOT($G25="-"),VLOOKUP($G25,DrawPrep!$A$3:$F$34,2,FALSE),"") -> 0 | G25: =VLOOKUP($B25,Setup!$K$2:$L$33,2,FALSE) -> 11 | H25: =IF($G25>0,VLOOKUP($G25,DrawPrep!$A$3:$F$34,6,FALSE),0) -> 10.5 | I25: =IF(Setup!$B$24="#",0,IF($G25>0,VLOOKUP($G25,DrawPrep!$A$3:$F$34,3,FALSE),0)) -> 37669 | J25: =IF($I25>0,VLOOKUP($I25,DrawPrep!$C$3:$F$34,2,FALSE),"bye") -> ΜΑΡΑΚΗΣ ΜΙΧΑΗΛ | K25: ΜΑΡΑΚΗΣ | L25: =IF($I25>0,VLOOKUP($I25,DrawPrep!$C$3:$F$34,3,FALSE),"") -> Ο.Α.ΧΑΝΙΩΝ | M25: 1 | N25: =IF((OR(M25=1,M25=2)),IF(M25=1,I25,I26),"") -> 37669 | O25: =UPPER(IF($A$2="R",IF(OR(M25=1,M25="a"),I25,IF(OR(M25=2,M25="b"),I26,"")),IF(OR(M25=1,M25="a"),K25,IF(OR(M25=2,M25="b"),K26,"")))) -> ΜΑΡΑΚΗΣ | U25: 40 41
A26: 22 | B26: =17-D26+8 -> 21 | C26: 14 | D26: 4 | E26: =IF($B$2>=C26,1,0) -> 0 | F26: =IF(NOT($G26="-"),VLOOKUP($G26,DrawPrep!$A$3:$F$34,2,FALSE),"") -> 0 | G26: =IF($B$2>=C26,"-",VLOOKUP($B26,Setup!$K$2:$L$33,2,FALSE)) -> 15 | H26: =IF(NOT($G26="-"),VLOOKUP($G26,DrawPrep!$A$3:$F$34,6,FALSE),0) -> 2.5 | I26: =IF(Setup!$B$24="#",0,IF(NOT($G26="-"),VLOOKUP($G26,DrawPrep!$A$3:$F$34,3,FALSE),0)) -> 37471 | J26: =IF($I26>0,VLOOKUP($I26,DrawPrep!$C$3:$F$34,2,FALSE),"bye") -> ΞΙΑΡΧΟΣ ΕΜΜΑΝΟΥΗΛ | K26: ΞΙΑΡΧΟΣ | L26: =IF($I26>0,VLOOKUP($I26,DrawPrep!$C$3:$F$34,3,FALSE),"") -> Α.Ο.ΛΑΤΩ ΑΓ.ΝΙΚΟΛΑΟΥ | O26: 40 54(0) | P26: 2 | Q26: =IF((OR(P26=1,P26=2)),IF(P26=1,N25,N27),"") -> 33396 | R26: =UPPER(IF($A$2="R",IF(OR(P26=1,P26="a"),O25,IF(OR(P26=2,P26="b"),O27,"")),IF(OR(P26=1,P26="a"),O25,IF(OR(P26=2,P26="b"),O27,"")))) -> ΖΕΡΒΟΣ
A27: 23 | B27: =18-D27+8 -> 21 | C27: =B28 -> 4 | D27: 5 | E27: =IF($B$2>=C27,1,0) -> 1 | F27: =IF(NOT($G27="-"),VLOOKUP($G27,DrawPrep!$A$3:$F$34,2,FALSE),"") ->  | G27: =IF($B$2>=C27,"-",VLOOKUP($B27,Setup!$K$2:$L$33,2,FALSE)) -> - | H27: =IF(NOT($G27="-"),VLOOKUP($G27,DrawPrep!$A$3:$F$34,6,FALSE),0) -> 0 | I27: =IF(Setup!$B$24="#",0,IF(NOT($G27="-"),VLOOKUP($G27,DrawPrep!$A$3:$F$34,3,FALSE),0)) -> 0 | J27: =IF($I27>0,VLOOKUP($I27,DrawPrep!$C$3:$F$34,2,FALSE),"bye") -> bye | L27: =IF($I27>0,VLOOKUP($I27,DrawPrep!$C$3:$F$34,3,FALSE),"") ->  | M27: 2 | N27: =IF((OR(M27=1,M27=2)),IF(M27=1,I27,I28),"") -> 33396 | O27: =UPPER(IF($A$2="R",IF(OR(M27=1,M27="a"),I27,IF(OR(M27=2,M27="b"),I28,"")),IF(OR(M27=1,M27="a"),K27,IF(OR(M27=2,M27="b"),K28,"")))) -> ΖΕΡΒΟΣ | R27: 41 42
A28: 24 | B28: =VALUE(Setup!E3) -> 4 | D28: 5 | E28: 0 | F28: =IF(NOT($G28="-"),VLOOKUP($G28,DrawPrep!$A$3:$F$34,2,FALSE),"") -> 0 | G28: =VLOOKUP($B28,Setup!$K$2:$L$33,2,FALSE) -> 4 | H28: =IF($G28>0,VLOOKUP($G28,DrawPrep!$A$3:$F$34,6,FALSE),0) -> 21.5 | I28: =IF(Setup!$B$24="#",0,IF($G28>0,VLOOKUP($G28,DrawPrep!$A$3:$F$34,3,FALSE),0)) -> 33396 | J28: =IF($I28>0,VLOOKUP($I28,DrawPrep!$C$3:$F$34,2,FALSE),"bye") -> ΖΕΡΒΟΣ ΣΤΥΛΙΑΝΟΣ | K28: ΖΕΡΒΟΣ | L28: =IF($I28>0,VLOOKUP($I28,DrawPrep!$C$3:$F$34,3,FALSE),"") -> Ο.Α.ΧΑΝΙΩΝ | V28: 2 | W28: =IF((OR(V28=1,V28=2)),IF(V28=1,T24,T32),"") -> 36263 | X28: =UPPER(IF($A$2="R",IF(OR(V28=1,V28="a"),U24,IF(OR(V28=2,V28="b"),U32,"")),IF(OR(V28=1,V28="a"),U24,IF(OR(V28=2,V28="b"),U32,"")))) -> ΜΑΝΔΑΛΕΝΑΚΗΣ
A29: 25 | B29: =VALUE(Setup!E8) -> 8 | D29: 5 | E29: 0 | F29: =IF(NOT($G29="-"),VLOOKUP($G29,DrawPrep!$A$3:$F$34,2,FALSE),"") -> 0 | G29: =VLOOKUP($B29,Setup!$K$2:$L$33,2,FALSE) -> 8 | H29: =IF($G29>0,VLOOKUP($G29,DrawPrep!$A$3:$F$34,6,FALSE),0) -> 14.5 | I29: =IF(Setup!$B$24="#",0,IF($G29>0,VLOOKUP($G29,DrawPrep!$A$3:$F$34,3,FALSE),0)) -> 35629 | J29: =IF($I29>0,VLOOKUP($I29,DrawPrep!$C$3:$F$34,2,FALSE),"bye") -> ΣΠΥΡΟΠΟΥΛΟΣ ΝΙΚΟΛΑΟΣ | K29: ΣΠΥΡΟΠΟΥΛΟΣ | L29: =IF($I29>0,VLOOKUP($I29,DrawPrep!$C$3:$F$34,3,FALSE),"") -> Ο.Α.ΡΕΘΥΜΝΟΥ | M29: 1 | N29: =IF((OR(M29=1,M29=2)),IF(M29=1,I29,I30),"") -> 35629 | O29: =UPPER(IF($A$2="R",IF(OR(M29=1,M29="a"),I29,IF(OR(M29=2,M29="b"),I30,"")),IF(OR(M29=1,M29="a"),K29,IF(OR(M29=2,M29="b"),K30,"")))) -> ΣΠΥΡΟΠΟΥΛΟΣ | X29: 46 76(7) 60
A30: 26 | B30: =19-D30+8 -> 22 | C30: =B29 -> 8 | D30: 5 | E30: =IF($B$2>=C30,1,0) -> 0 | F30: =IF(NOT($G30="-"),VLOOKUP($G30,DrawPrep!$A$3:$F$34,2,FALSE),"") -> 0 | G30: =IF($B$2>=C30,"-",VLOOKUP($B30,Setup!$K$2:$L$33,2,FALSE)) -> 23 | H30: =IF(NOT($G30="-"),VLOOKUP($G30,DrawPrep!$A$3:$F$34,6,FALSE),0) -> 0 | I30: =IF(Setup!$B$24="#",0,IF(NOT($G30="-"),VLOOKUP($G30,DrawPrep!$A$3:$F$34,3,FALSE),0)) -> 38017 | J30: =IF($I30>0,VLOOKUP($I30,DrawPrep!$C$3:$F$34,2,FALSE),"bye") -> ΝΕΚΤΑΡΙΟΣ ΑΘΑΝΑΣΙΟΣ | K30: ΝΕΚΤΑΡΙΟΣ | L30: =IF($I30>0,VLOOKUP($I30,DrawPrep!$C$3:$F$34,3,FALSE),"") -> ΗΡΑΚΛΕΙΟ Ο.Α.& Α. | O30: 40 40 | P30: 1 | Q30: =IF((OR(P30=1,P30=2)),IF(P30=1,N29,N31),"") -> 35629 | R30: =UPPER(IF($A$2="R",IF(OR(P30=1,P30="a"),O29,IF(OR(P30=2,P30="b"),O31,"")),IF(OR(P30=1,P30="a"),O29,IF(OR(P30=2,P30="b"),O31,"")))) -> ΣΠΥΡΟΠΟΥΛΟΣ
A31: 27 | B31: =20-D31+8 -> 23 | D31: 5 | E31: 0 | F31: =IF(NOT($G31="-"),VLOOKUP($G31,DrawPrep!$A$3:$F$34,2,FALSE),"") -> 0 | G31: =VLOOKUP($B31,Setup!$K$2:$L$33,2,FALSE) -> 16 | H31: =IF($G31>0,VLOOKUP($G31,DrawPrep!$A$3:$F$34,6,FALSE),0) -> 2 | I31: =IF(Setup!$B$24="#",0,IF($G31>0,VLOOKUP($G31,DrawPrep!$A$3:$F$34,3,FALSE),0)) -> 38697 | J31: =IF($I31>0,VLOOKUP($I31,DrawPrep!$C$3:$F$34,2,FALSE),"bye") -> ΤΑΒΕΡΝΑΡΑΚΗΣ ΕΜΜΑΝΟΥΗΛ | K31: ΤΑΒΕΡΝΑΡΑΚΗΣ | L31: =IF($I31>0,VLOOKUP($I31,DrawPrep!$C$3:$F$34,3,FALSE),"") -> ΗΡΑΚΛΕΙΟ Ο.Α.& Α. | M31: 1 | N31: =IF((OR(M31=1,M31=2)),IF(M31=1,I31,I32),"") -> 38697 | O31: =UPPER(IF($A$2="R",IF(OR(M31=1,M31="a"),I31,IF(OR(M31=2,M31="b"),I32,"")),IF(OR(M31=1,M31="a"),K31,IF(OR(M31=2,M31="b"),K32,"")))) -> ΤΑΒΕΡΝΑΡΑΚΗΣ | R31: 41 40
A32: 28 | B32: =21-D32+8 -> 24 | C32: 10 | D32: 5 | E32: =IF($B$2>=C32,1,0) -> 0 | F32: =IF(NOT($G32="-"),VLOOKUP($G32,DrawPrep!$A$3:$F$34,2,FALSE),"") -> 0 | G32: =IF($B$2>=C32,"-",VLOOKUP($B32,Setup!$K$2:$L$33,2,FALSE)) -> 14 | H32: =IF(NOT($G32="-"),VLOOKUP($G32,DrawPrep!$A$3:$F$34,6,FALSE),0) -> 5 | I32: =IF(Setup!$B$24="#",0,IF(NOT($G32="-"),VLOOKUP($G32,DrawPrep!$A$3:$F$34,3,FALSE),0)) -> 33985 | J32: =IF($I32>0,VLOOKUP($I32,DrawPrep!$C$3:$F$34,2,FALSE),"bye") -> ΤΣΙΤΟΥΝΗΣ ΜΙΧΑΛΗΣ | K32: ΤΣΙΤΟΥΝΗΣ | L32: =IF($I32>0,VLOOKUP($I32,DrawPrep!$C$3:$F$34,3,FALSE),"") -> ΦΙΛΙΑ Τ.Κ. | O32: 53 42 | S32: 2 | T32: =IF((OR(S32=1,S32=2)),IF(S32=1,Q30,Q34),"") -> 36263 | U32: =UPPER(IF($A$2="R",IF(OR(S32=1,S32="a"),R30,IF(OR(S32=2,S32="b"),R34,"")),IF(OR(S32=1,S32="a"),R30,IF(OR(S32=2,S32="b"),R34,"")))) -> ΜΑΝΔΑΛΕΝΑΚΗΣ
A33: 29 | B33: =22-D33+8 -> 25 | D33: 5 | E33: 0 | F33: =IF(NOT($G33="-"),VLOOKUP($G33,DrawPrep!$A$3:$F$34,2,FALSE),"") -> 0 | G33: =VLOOKUP($B33,Setup!$K$2:$L$33,2,FALSE) -> 24 | H33: =IF($G33>0,VLOOKUP($G33,DrawPrep!$A$3:$F$34,6,FALSE),0) -> 0 | I33: =IF(Setup!$B$24="#",0,IF($G33>0,VLOOKUP($G33,DrawPrep!$A$3:$F$34,3,FALSE),0)) -> 36616 | J33: =IF($I33>0,VLOOKUP($I33,DrawPrep!$C$3:$F$34,2,FALSE),"bye") -> ΚΟΚΚΑΛΗΣ ΣΤΥΛΙΑΝΟΣ | K33: ΚΟΚΚΑΛΗΣ | L33: =IF($I33>0,VLOOKUP($I33,DrawPrep!$C$3:$F$34,3,FALSE),"") -> Γ.Σ.ΛΙΒΥΚΟΣ ΙΕΡΑΠΕΤΡΑΣ | M33: 2 | N33: =IF((OR(M33=1,M33=2)),IF(M33=1,I33,I34),"") -> 37664 | O33: =UPPER(IF($A$2="R",IF(OR(M33=1,M33="a"),I33,IF(OR(M33=2,M33="b"),I34,"")),IF(OR(M33=1,M33="a"),K33,IF(OR(M33=2,M33="b"),K34,"")))) -> ΚΑΫΜΕΝΑΚΗΣ | U33: 40 40
A34: 30 | B34: =23-D34+8 -> 26 | C34: 16 | D34: 5 | E34: =IF($B$2>=C34,1,0) -> 0 | F34: =IF(NOT($G34="-"),VLOOKUP($G34,DrawPrep!$A$3:$F$34,2,FALSE),"") -> 0 | G34: =IF($B$2>=C34,"-",VLOOKUP($B34,Setup!$K$2:$L$33,2,FALSE)) -> 13 | H34: =IF(NOT($G34="-"),VLOOKUP($G34,DrawPrep!$A$3:$F$34,6,FALSE),0) -> 7.25 | I34: =IF(Setup!$B$24="#",0,IF(NOT($G34="-"),VLOOKUP($G34,DrawPrep!$A$3:$F$34,3,FALSE),0)) -> 37664 | J34: =IF($I34>0,VLOOKUP($I34,DrawPrep!$C$3:$F$34,2,FALSE),"bye") -> ΚΑΫΜΕΝΑΚΗΣ ΑΡΙΣΤΟΤΕΛΗΣ | K34: ΚΑΫΜΕΝΑΚΗΣ | L34: =IF($I34>0,VLOOKUP($I34,DrawPrep!$C$3:$F$34,3,FALSE),"") -> Ο.Α.ΧΑΝΙΩΝ | O34: 40 42 | P34: 2 | Q34: =IF((OR(P34=1,P34=2)),IF(P34=1,N33,N35),"") -> 36263 | R34: =UPPER(IF($A$2="R",IF(OR(P34=1,P34="a"),O33,IF(OR(P34=2,P34="b"),O35,"")),IF(OR(P34=1,P34="a"),O33,IF(OR(P34=2,P34="b"),O35,"")))) -> ΜΑΝΔΑΛΕΝΑΚΗΣ
A35: 31 | B35: =24-D35+8 -> 26 | C35: =B36 -> 2 | D35: 6 | E35: =IF($B$2>=C35,1,0) -> 1 | F35: =IF(NOT($G35="-"),VLOOKUP($G35,DrawPrep!$A$3:$F$34,2,FALSE),"") ->  | G35: =IF($B$2>=C35,"-",VLOOKUP($B35,Setup!$K$2:$L$33,2,FALSE)) -> - | H35: =IF(NOT($G35="-"),VLOOKUP($G35,DrawPrep!$A$3:$F$34,6,FALSE),0) -> 0 | I35: =IF(Setup!$B$24="#",0,IF(NOT($G35="-"),VLOOKUP($G35,DrawPrep!$A$3:$F$34,3,FALSE),0)) -> 0 | J35: =IF($I35>0,VLOOKUP($I35,DrawPrep!$C$3:$F$34,2,FALSE),"bye") -> bye | L35: =IF($I35>0,VLOOKUP($I35,DrawPrep!$C$3:$F$34,3,FALSE),"") ->  | M35: 2 | N35: =IF((OR(M35=1,M35=2)),IF(M35=1,I35,I36),"") -> 36263 | O35: =UPPER(IF($A$2="R",IF(OR(M35=1,M35="a"),I35,IF(OR(M35=2,M35="b"),I36,"")),IF(OR(M35=1,M35="a"),K35,IF(OR(M35=2,M35="b"),K36,"")))) -> ΜΑΝΔΑΛΕΝΑΚΗΣ | R35: 42 42
A36: 32 | B36: 2 | D36: 6 | E36: 0 | F36: =IF(NOT($G36="-"),VLOOKUP($G36,DrawPrep!$A$3:$F$34,2,FALSE),"") -> 0 | G36: =VLOOKUP($B36,Setup!$K$2:$L$33,2,FALSE) -> 2 | H36: =IF($G36>0,VLOOKUP($G36,DrawPrep!$A$3:$F$34,6,FALSE),0) -> 28 | I36: =IF(Setup!$B$24="#",0,IF($G36>0,VLOOKUP($G36,DrawPrep!$A$3:$F$34,3,FALSE),0)) -> 36263 | J36: =IF($I36>0,VLOOKUP($I36,DrawPrep!$C$3:$F$34,2,FALSE),"bye") -> ΜΑΝΔΑΛΕΝΑΚΗΣ ΑΝΑΣΤΑΣΙΟΣ | K36: ΜΑΝΔΑΛΕΝΑΚΗΣ | L36: =IF($I36>0,VLOOKUP($I36,DrawPrep!$C$3:$F$34,3,FALSE),"") -> ΗΡΑΚΛΕΙΟ Ο.Α.& Α.
J38: seeded players
J39: ="1. " & IF(Setup!B19>0,LEFT(DrawPrep!D3,FIND(" ",DrawPrep!D3)+1),"") -> 1. ΜΑΤΣΑΜΑΚΗΣ Ε | L39: ="5. " & IF(Setup!B19>4,LEFT(DrawPrep!D7,FIND(" ",DrawPrep!D7)+1),"") -> 5. ΧΑΛΑΚΑΤΕΒΑΚΗΣ Α
J40: ="2. " & IF(Setup!B19>1,LEFT(DrawPrep!D4,FIND(" ",DrawPrep!D4)+1),"") -> 2. ΜΑΝΔΑΛΕΝΑΚΗΣ Α | L40: ="6. " & IF(Setup!B19>5,LEFT(DrawPrep!D8,FIND(" ",DrawPrep!D8)+1),"") -> 6. ΠΕΤΡΑΚΗΣ Σ | U40: επιδιαιτητής
J41: ="3. " & IF(Setup!B19>2,LEFT(DrawPrep!D5,FIND(" ",DrawPrep!D5)+1),"") -> 3. ΓΕΝΝΑΡΑΚΗΣ Ν | L41: ="7. " & IF(Setup!B19>6,LEFT(DrawPrep!D9,FIND(" ",DrawPrep!D9)+1),"") -> 7. ΚΟΚΚΙΝΑΚΗΣ Γ | U41: =Setup!B11 -> Κ. Χατζηδάκης
J42: ="4. " & IF(Setup!B19>3,LEFT(DrawPrep!D6,FIND(" ",DrawPrep!D6)+1),"") -> 4. ΖΕΡΒΟΣ Σ | L42: ="8. " & IF(Setup!B19>7,LEFT(DrawPrep!D10,FIND(" ",DrawPrep!D10)+1),"") -> 8. ΣΠΥΡΟΠΟΥΛΟΣ Ν
J58: BoldPlayers
J59: =IF(Setup!$B$19>0,LEFT(DrawPrep!D3,FIND(" ",DrawPrep!D3)-1)) -> ΜΑΤΣΑΜΑΚΗΣ
J60: =IF(Setup!$B$19>1,LEFT(DrawPrep!D4,FIND(" ",DrawPrep!D4)-1)) -> ΜΑΝΔΑΛΕΝΑΚΗΣ
J61: =IF(Setup!$B$19>2,LEFT(DrawPrep!D5,FIND(" ",DrawPrep!D5)-1)) -> ΓΕΝΝΑΡΑΚΗΣ
J62: =IF(Setup!$B$19>3,LEFT(DrawPrep!D6,FIND(" ",DrawPrep!D6)-1)) -> ΖΕΡΒΟΣ
J63: =IF(Setup!$B$19>4,LEFT(DrawPrep!D7,FIND(" ",DrawPrep!D7)-1)) -> ΧΑΛΑΚΑΤΕΒΑΚΗΣ
J64: =IF(Setup!$B$19>5,LEFT(DrawPrep!D8,FIND(" ",DrawPrep!D8)-1)) -> ΠΕΤΡΑΚΗΣ
J65: =IF(Setup!$B$19>6,LEFT(DrawPrep!D9,FIND(" ",DrawPrep!D9)-1)) -> ΚΟΚΚΙΝΑΚΗΣ
J66: =IF(Setup!$B$19>7,LEFT(DrawPrep!D10,FIND(" ",DrawPrep!D10)-1)) -> ΣΠΥΡΟΠΟΥΛΟΣ

Sheet Day1
A1: Ζ΄ ΕΝΩΣΗ, 3ο Ε3 2016, Γ.Σ. ΛΙΒΥΚΟΣ ΙΕΡΑΠ. (Α12)
A2: Κ. Χατζηδάκης
A3: Πρόγραμμα αγώνων | E3: Round 1 | F3: i
A4: ΩΡΑ | B4: Κτγρ. | C4: Αθλητής-Σύλλογος | E4: Αθλητής-Σύλλογος
A5: Έναρξη | B5: Α12 | C5: ΜΑΤΣΑΜΑΚΗΣ Ε (Ο.Α.ΧΑΝΙΩΝ)
B6: Α12 | C6: ΚΩΣΤΑΚΗΣ Ε (ΗΡΑΚΛΕΙΟ Ο.Α.& Α.) | D6: - | E6: ΒΟΛΤΥΡΑΚΗΣ Ε (Ο.Α.ΧΑΝΙΩΝ)
B7: Α12 | C7: ΠΕΡΔΙΚΑΚΗΣ Ε (Γ.Σ.ΛΙΒΥΚΟΣ ΙΕΡΑΠΕΤΡΑΣ) | D7: - | E7: ΦΟΥΝΤΟΥΛΑΚΗΣ Ν (Ο.Α.ΧΑΝΙΩΝ)
B8: Α12 | E8: ΠΕΤΡΑΚΗΣ Σ (Ο.Α.ΧΑΝΙΩΝ)
B9: Α12 | C9: ΓΕΝΝΑΡΑΚΗΣ Ν (ΗΡΑΚΛΕΙΟ Ο.Α.& Α.)
A10: όχι πριν | B10: Α12 | C10: ΜΠΟΥΝΑΚΗΣ Δ (ΗΡΑΚΛΕΙΟ Ο.Α.& Α.) | D10: - | E10: ΚΑΛΑΤΖΗΣ Α (ΗΡΑΚΛΕΙΟ Ο.Α.& Α.)
B11: Α12 | C11: ΚΑΡΑΚΩΣΤΑΣ Σ (ΗΡΑΚΛΕΙΟ Ο.Α.& Α.) | D11: - | E11: ΒΕΛΕΝΤΑΚΗΣ Ι (ΗΡΑΚΛΕΙΟ Ο.Α.& Α.)
B12: Α12 | C12: ΝΙΝΟΣ Ν (Ο.Α.ΡΕΘΥΜΝΟΥ) | D12: - | E12: ΚΟΚΚΙΝΑΚΗΣ Γ (Ο.Α.ΧΑΝΙΩΝ)
B13: Α12 | C13: ΧΑΛΑΚΑΤΕΒΑΚΗΣ Α (Ο.Α.ΧΑΝΙΩΝ)
B14: Α12 | C14: ΣΤΡΟΜΠΑ Ι (Ο.Α.ΧΑΝΙΩΝ) | D14: - | E14: ΒΕΓΟΠΟΥΛΟΣ Χ (ΦΙΛΙΑ Τ.Κ.)
A15: όχι πριν | B15: Α12 | C15: ΜΑΡΑΚΗΣ Μ (Ο.Α.ΧΑΝΙΩΝ) | D15: - | E15: ΞΙΑΡΧΟΣ Ε (Α.Ο.ΛΑΤΩ ΑΓ.ΝΙΚΟΛΑΟΥ)
B16: Α12 | E16: ΖΕΡΒΟΣ Σ (Ο.Α.ΧΑΝΙΩΝ)
B17: Α12 | C17: ΣΠΥΡΟΠΟΥΛΟΣ Ν (Ο.Α.ΡΕΘΥΜΝΟΥ) | D17: - | E17: ΝΕΚΤΑΡΙΟΣ Α (ΗΡΑΚΛΕΙΟ Ο.Α.& Α.)
B18: Α12 | C18: ΤΑΒΕΡΝΑΡΑΚΗΣ Ε (ΗΡΑΚΛΕΙΟ Ο.Α.& Α.) | D18: - | E18: ΤΣΙΤΟΥΝΗΣ Μ (ΦΙΛΙΑ Τ.Κ.)
B19: Α12 | C19: ΚΟΚΚΑΛΗΣ Σ (Γ.Σ.ΛΙΒΥΚΟΣ ΙΕΡΑΠΕΤΡΑΣ) | D19: - | E19: ΚΑΫΜΕΝΑΚΗΣ Α (Ο.Α.ΧΑΝΙΩΝ)
B20: Α12 | E20: ΜΑΝΔΑΛΕΝΑΚΗΣ Α (ΗΡΑΚΛΕΙΟ Ο.Α.& Α.)
A22: Έναρξη | B22: Κ12 | C22: ΜΑΡΙΝΑΚΗ Σ (Ο.Α.ΧΑΝΙΩΝ)
B23: Κ12 | C23: ΓΑΡΕΦΑΛΑΚΗ Μ (ΗΡΑΚΛΕΙΟ Ο.Α.& Α.) | D23: - | E23: ΚΑΡΟΦΥΛΑΚΗ Β (Γ.Σ.ΛΙΒΥΚΟΣ ΙΕΡΑΠΕΤΡΑΣ)
B24: Κ12 | C24: ΠΡΙΝΙΑΝΑΚΗ Ε (ΦΙΛΙΑ Τ.Κ.)
B25: Κ12 | E25: ΔΑΒΡΑΔΟΥ Ε (Α.Ο.ΛΑΤΩ ΑΓ.ΝΙΚΟΛΑΟΥ)
A26: όχι πριν | B26: Κ12 | C26: ΝΤΑΜΠΑΚΑΚΗ Χ (ΗΡΑΚΛΕΙΟ Ο.Α.& Α.)
B27: Κ12 | C27: ΚΟΚΚΙΝΑΚΗ Μ (Ο.Α.ΧΑΝΙΩΝ)
B28: Κ12 | C28: ΚΑΡΑΠΑΝΤΑΖΗ Κ (Ο.Α.ΣΟΥΔΑΣ) | D28: - | E28: ΧΑΤΖΗΑΘΑΝΑΣΙΑΔΗ Ι (ΗΡΑΚΛΕΙΟ Ο.Α.& Α.)
B29: Κ12 | E29: ΑΛΠΑΝΤΗ Α (Ο.Α.ΣΟΥΔΑΣ)
B31: Α16 | C31: ΤΣΑΚΑΛΑΚΗΣ Ν (ΗΡΑΚΛΕΙΟ Ο.Α.& Α.) | D31: - | E31: ΣΙΜΑΤΟΣ Γ (ΗΡΑΚΛΕΙΟ Ο.Α.& Α.)
A33: 13:30:00 | B33: Κ16 | C33: ΜΠΑΛΑΣΚΑ Β (Ο.Α.ΧΑΝΙΩΝ) | D33: - | E33: ΔΕΣΚΟΥΛΙΔΟΥ Ι (Α.Π.Μ.Σ.ΑΣΚΗΣΗ ΗΡΑΚΛΕΙΟΥ)
B34: Κ16 | C34: ΖΑΦΕΙΡΟΠΟΥΛΟΥ Κ (ΗΡΑΚΛΕΙΟ Ο.Α.& Α.) | D34: - | E34: ΔΕΣΚΟΥΛΙΔΟΥ Χ (Α.Π.Μ.Σ.ΑΣΚΗΣΗ ΗΡΑΚΛΕΙΟΥ)
B35: Κ16 | C35: ΒΑΡΒΕΡΑΚΗ Μ (Ο.Α.ΧΑΝΙΩΝ) | D35: - | E35: ΚΡΟΝΤΗΡΑ Ε (ΗΡΑΚΛΕΙΟ Ο.Α.& Α.)
B36: Κ16 | C36: ΣΤΑΜΟΥΛΟΥ Α (Ο.Α.ΧΑΝΙΩΝ) | D36: - | E36: ΒΕΛΙΒΑΣΑΚΗ Χ (ΗΡΑΚΛΕΙΟ Ο.Α.& Α.)
A38: 14:30:00 | B38: Α12 | C38: ΜΑΤΣΑΜΑΚΗΣ Ε (Ο.Α.ΧΑΝΙΩΝ) | E38: ΒΟΛΤΥΡΑΚΗΣ Ε (Ο.Α.ΧΑΝΙΩΝ)
B39: Α12 | C39: ΠΕΡΔΙΚΑΚΗΣ Ε (Γ.Σ.ΛΙΒΥΚΟΣ ΙΕΡΑΠΕΤΡΑΣ) | E39: ΠΕΤΡΑΚΗΣ Σ (Ο.Α.ΧΑΝΙΩΝ)
B40: Α12 | C40: ΓΕΝΝΑΡΑΚΗΣ Ν (ΗΡΑΚΛΕΙΟ Ο.Α.& Α.) | E40: ΜΠΟΥΝΑΚΗΣ Δ (ΗΡΑΚΛΕΙΟ Ο.Α.& Α.)
B41: Α12 | C41: ΚΑΡΑΚΩΣΤΑΣ Σ (ΗΡΑΚΛΕΙΟ Ο.Α.& Α.) | E41: ΚΟΚΚΙΝΑΚΗΣ Γ (Ο.Α.ΧΑΝΙΩΝ)
A42: 15:30:00 | B42: Α12 | C42: ΧΑΛΑΚΑΤΕΒΑΚΗΣ Α (Ο.Α.ΧΑΝΙΩΝ) | E42: ΣΤΡΟΜΠΑ Ι (Ο.Α.ΧΑΝΙΩΝ)
B43: Α12 | C43: ΜΑΡΑΚΗΣ Μ (Ο.Α.ΧΑΝΙΩΝ) | E43: ΖΕΡΒΟΣ Σ (Ο.Α.ΧΑΝΙΩΝ)
B44: Α12 | C44: ΣΠΥΡΟΠΟΥΛΟΣ Ν (Ο.Α.ΡΕΘΥΜΝΟΥ) | E44: ΤΑΒΕΡΝΑΡΑΚΗΣ Ε (ΗΡΑΚΛΕΙΟ Ο.Α.& Α.)
B45: Α12 | C45: ΚΑΫΜΕΝΑΚΗΣ Α (Ο.Α.ΧΑΝΙΩΝ) | E45: ΜΑΝΔΑΛΕΝΑΚΗΣ Α (ΗΡΑΚΛΕΙΟ Ο.Α.& Α.)
A47: 16:00:00 | B47: Κ12 | C47: ΜΑΡΙΝΑΚΗ | E47: ΓΑΡΕΦΑΛΑΚΗ
B48: Κ12 | C48: ΠΡΙΝΙΑΝΑΚΗ | E48: ΔΑΒΡΑΔΟΥ
B49: Κ12 | C49: ΝΤΑΜΠΑΚΑΚΗ | E49: ΚΟΚΚΙΝΑΚΗ
B50: Κ12 | C50: ΚΑΡΑΠΑΝΤΑΖΗ | E50: ΑΛΠΑΝΤΗ
A52: 17:00:00 | B52: Α16 | C52: ΚΑΡΑΧΑΛΙΟΣ | E52: ΜΑΡΓΑΡΙΤΗΣ
B53: Α16 | C53: ΚΟΝΤΑΡΑΚΗΣ | E53: ΧΑΛΑΚΑΤΕΒΑΚΗΣ
B54: Α16 | C54: ΚΩΝΣΤΑΝΤΑΡΑΚΗΣ ΑΝΔΡΕΑΣ | E54: ΚΩΝΣΤΑΝΤΑΡΑΚΗΣ ΑΝΤΩΝΙΟΣ
B55: Α16 | C55: ΤΣΑΚΑΛΑΚΗΣ | E55: ΜΑΤΣΑΜΑΚΗΣ
A57: 18:00:00 | B57: Κ16 | C57: ΜΠΑΛΑΣΚΑ Β (Ο.Α.ΧΑΝΙΩΝ) | E57: ΖΑΦΕΙΡΟΠΟΥΛΟΥ Κ (ΗΡΑΚΛΕΙΟ Ο.Α.& Α.)
B58: Κ16 | C58: ΒΑΡΒΕΡΑΚΗ Μ (Ο.Α.ΧΑΝΙΩΝ) | E58: ΒΕΛΙΒΑΣΑΚΗ Χ (ΗΡΑΚΛΕΙΟ Ο.Α.& Α.)
A60: 19:00:00 | B60: Α12 | C60: ΜΑΤΣΑΜΑΚΗΣ Ε (Ο.Α.ΧΑΝΙΩΝ) | E60: ΠΕΤΡΑΚΗΣ Σ (Ο.Α.ΧΑΝΙΩΝ)
B61: Α12 | C61: ΓΕΝΝΑΡΑΚΗΣ Ν (ΗΡΑΚΛΕΙΟ Ο.Α.& Α.) | E61: ΚΟΚΚΙΝΑΚΗΣ Γ (Ο.Α.ΧΑΝΙΩΝ)
B62: Α12 | C62: ΣΤΡΟΜΠΑ Ι (Ο.Α.ΧΑΝΙΩΝ) | E62: ΖΕΡΒΟΣ Σ (Ο.Α.ΧΑΝΙΩΝ)
B63: Α12 | C63: ΣΠΥΡΟΠΟΥΛΟΣ Ν (Ο.Α.ΡΕΘΥΜΝΟΥ) | E63: ΜΑΝΔΑΛΕΝΑΚΗΣ Α (ΗΡΑΚΛΕΙΟ Ο.Α.& Α.)
C66: ΚΥΡΙΑΚΗ 23/10/2016
A68: 09:00:00 | B68: ημΑ12
B69: ημΑ12
B70: ημΚ12
B71: ημΚ12
A73: 10:00:00 | B73: ημΑ16
B74: ημΑ16
B75: τελΚ16
A77: 12:00:00 | B77: τελΑ12
B78: τελΚ12
A80: 13:00:00 | B80: τελΑ16

Sheet Day2
A1: Ζ΄ ΕΝΩΣΗ, 3ο Ε3 2016, Γ.Σ. ΛΙΒΥΚΟΣ ΙΕΡΑΠ. (Α12)
A2: Κ. Χατζηδάκης
A3: Πρόγραμμα αγώνων | E3: Round 1 | F3: i
A4: ΩΡΑ | B4: Κτγρ. | C4: Αθλητής-Σύλλογος | E4: Αθλητής-Σύλλογος
A5: Έναρξη | B5: Α12 | C5: ΟΡΦΑΝΙΔΗΣ Μ (0) | D5: - | E5: ΚΟΥΛΟΥΜΠΗΣ Γ (0)
B6: Α12 | C6: ΦΩΚΙΑΛΗΣ Γ (0) | D6: - | E6: ΔΕΣΥΠΡΗΣ Γ (0)
B7: Α12 | C7: ΡΟΔΙΤΗΣ Ν (0) | D7: - | E7: ΠΑΠΟΥΤΣΗΣ Π (0)
B8: Α12 | C8: ΠΕΡΡΗΣ Ν (0) | D8: - | E8: ΓΕΩΡΓΙΑΔΗΣ Α (0)
B9: Α12 | C9: ΜΑΜΑΣΗΣ Γ (0) | D9: - | E9: ΜΩΥΣΙΔΗΣ Ν (0)
A10: όχι πριν | B10: Α12 | C10: ΦΡΑΓΚΑΚΗΣ Τ (0) | D10: - | E10: ΠΕΝΣΟΣ Ε (0)
B11: Α12 | C11: ΤΖΩΡΤΖΗΣ Δ (0) | D11: - | E11: ΠΑΝΤΑΖΑΤΟΣ Γ (0)
B12: Α12 | C12: ΖΑΦΕΙΡΟΠΟΥΛΟΣ Α (0) | D12: - | E12: GENTILI S (0)

Sheet notes

Sheet PrgPrep
A1: =Setup!B3 & ", " & Setup!B4 & ", " & Setup!B7 & " (" & Setup!B8 & ")" -> Ζ΄ ΕΝΩΣΗ, 3ο Ε3 2016, Γ.Σ. ΛΙΒΥΚΟΣ ΙΕΡΑΠ. (Α12) | H1: Don't Change this Worksheet !
A2: =Setup!$B$11 -> Κ. Χατζηδάκης
A3: Πρόγραμμα αγώνων | E3: Round 1 | F3: i
A4: ΩΡΑ | B4: Κτγρ. | C4: Αθλητής-Σύλλογος | E4: Αθλητής-Σύλλογος
A5: Έναρξη | B5: =Setup!$B$8 -> Α12 | C5: =IF(OR(MD!J5="bye",MD!J5="LWD"),"",CONCATENATE(LEFT(MD!J5,FIND(" ",MD!J5)+1)," (",MD!L5,")")) -> ΜΑΤΣΑΜΑΚΗΣ Ε (Ο.Α.ΧΑΝΙΩΝ) | D5: =IF(OR(C5="",E5="")," ","-") ->  | E5: =IF(OR(MD!J6="bye",MD!J6="LWD"), "", CONCATENATE(LEFT(MD!J6,FIND(" ",MD!J6)+1)," (",MD!L6,")")) -> 
B6: =Setup!$B$8 -> Α12 | C6: =IF(OR(MD!J7="bye",MD!J7="LWD"),"",CONCATENATE(LEFT(MD!J7,FIND(" ",MD!J7)+1)," (",MD!L7,")")) -> ΚΩΣΤΑΚΗΣ Ε (ΗΡΑΚΛΕΙΟ Ο.Α.& Α.) | D6: =IF(OR(C6="",E6="")," ","-") -> - | E6: =IF(OR(MD!J8="bye",MD!J8="LWD"), "", CONCATENATE(LEFT(MD!J8,FIND(" ",MD!J8)+1)," (",MD!L8,")")) -> ΒΟΛΤΥΡΑΚΗΣ Ε (Ο.Α.ΧΑΝΙΩΝ)
B7: =Setup!$B$8 -> Α12 | C7: =IF(OR(MD!J9="bye",MD!J9="LWD"),"",CONCATENATE(LEFT(MD!J9,FIND(" ",MD!J9)+1)," (",MD!L9,")")) -> ΠΕΡΔΙΚΑΚΗΣ Ε (Γ.Σ.ΛΙΒΥΚΟΣ ΙΕΡΑΠΕΤΡΑΣ) | D7: - | E7: =IF(OR(MD!J10="bye",MD!J10="LWD"), "", CONCATENATE(LEFT(MD!J10,FIND(" ",MD!J10)+1)," (",MD!L10,")")) -> ΦΟΥΝΤΟΥΛΑΚΗΣ Ν (Ο.Α.ΧΑΝΙΩΝ)
B8: =Setup!$B$8 -> Α12 | C8: =IF(OR(MD!J11="bye",MD!J11="LWD"),"",CONCATENATE(LEFT(MD!J11,FIND(" ",MD!J11)+1)," (",MD!L11,")")) ->  | E8: =IF(OR(MD!J12="bye",MD!J12="LWD"), "", CONCATENATE(LEFT(MD!J12,FIND(" ",MD!J12)+1)," (",MD!L12,")")) -> ΠΕΤΡΑΚΗΣ Σ (Ο.Α.ΧΑΝΙΩΝ)
A9: όχι πριν | B9: =Setup!$B$8 -> Α12 | C9: =IF(OR(MD!J13="bye",MD!J13="LWD"),"",CONCATENATE(LEFT(MD!J13,FIND(" ",MD!J13)+1)," (",MD!L13,")")) -> ΓΕΝΝΑΡΑΚΗΣ Ν (ΗΡΑΚΛΕΙΟ Ο.Α.& Α.) | E9: =IF(OR(MD!J14="bye",MD!J14="LWD"), "", CONCATENATE(LEFT(MD!J14,FIND(" ",MD!J14)+1)," (",MD!L14,")")) -> 
B10: =Setup!$B$8 -> Α12 | C10: =IF(OR(MD!J15="bye",MD!J15="LWD"),"",CONCATENATE(LEFT(MD!J15,FIND(" ",MD!J15)+1)," (",MD!L15,")")) -> ΜΠΟΥΝΑΚΗΣ Δ (ΗΡΑΚΛΕΙΟ Ο.Α.& Α.) | D10: - | E10: =IF(OR(MD!J16="bye",MD!J16="LWD"), "", CONCATENATE(LEFT(MD!J16,FIND(" ",MD!J16)+1)," (",MD!L16,")")) -> ΚΑΛΑΤΖΗΣ Α (ΗΡΑΚΛΕΙΟ Ο.Α.& Α.)
B11: =Setup!$B$8 -> Α12 | C11: =IF(OR(MD!J17="bye",MD!J17="LWD"),"",CONCATENATE(LEFT(MD!J17,FIND(" ",MD!J17)+1)," (",MD!L17,")")) -> ΚΑΡΑΚΩΣΤΑΣ Σ (ΗΡΑΚΛΕΙΟ Ο.Α.& Α.) | D11: - | E11: =IF(OR(MD!J18="bye",MD!J18="LWD"), "", CONCATENATE(LEFT(MD!J18,FIND(" ",MD!J18)+1)," (",MD!L18,")")) -> ΒΕΛΕΝΤΑΚΗΣ Ι (ΗΡΑΚΛΕΙΟ Ο.Α.& Α.)
B12: =Setup!$B$8 -> Α12 | C12: =IF(OR(MD!J19="bye",MD!J19="LWD"),"",CONCATENATE(LEFT(MD!J19,FIND(" ",MD!J19)+1)," (",MD!L19,")")) -> ΝΙΝΟΣ Ν (Ο.Α.ΡΕΘΥΜΝΟΥ) | D12: - | E12: =IF(OR(MD!J20="bye",MD!J20="LWD"), "", CONCATENATE(LEFT(MD!J20,FIND(" ",MD!J20)+1)," (",MD!L20,")")) -> ΚΟΚΚΙΝΑΚΗΣ Γ (Ο.Α.ΧΑΝΙΩΝ)
A13: όχι πριν | B13: =Setup!$B$8 -> Α12 | C13: =IF(OR(MD!J21="bye",MD!J21="LWD"),"",CONCATENATE(LEFT(MD!J21,FIND(" ",MD!J21)+1)," (",MD!L21,")")) -> ΧΑΛΑΚΑΤΕΒΑΚΗΣ Α (Ο.Α.ΧΑΝΙΩΝ) | E13: =IF(OR(MD!J22="bye",MD!J22="LWD"), "", CONCATENATE(LEFT(MD!J22,FIND(" ",MD!J22)+1)," (",MD!L22,")")) -> 
B14: =Setup!$B$8 -> Α12 | C14: =IF(OR(MD!J23="bye",MD!J23="LWD"),"",CONCATENATE(LEFT(MD!J23,FIND(" ",MD!J23)+1)," (",MD!L23,")")) -> ΣΤΡΟΜΠΑ Ι (Ο.Α.ΧΑΝΙΩΝ) | D14: - | E14: =IF(OR(MD!J24="bye",MD!J24="LWD"), "", CONCATENATE(LEFT(MD!J24,FIND(" ",MD!J24)+1)," (",MD!L24,")")) -> ΒΕΓΟΠΟΥΛΟΣ Χ (ΦΙΛΙΑ Τ.Κ.)
B15: =Setup!$B$8 -> Α12 | C15: =IF(OR(MD!J25="bye",MD!J25="LWD"),"",CONCATENATE(LEFT(MD!J25,FIND(" ",MD!J25)+1)," (",MD!L25,")")) -> ΜΑΡΑΚΗΣ Μ (Ο.Α.ΧΑΝΙΩΝ) | D15: - | E15: =IF(OR(MD!J26="bye",MD!J26="LWD"), "", CONCATENATE(LEFT(MD!J26,FIND(" ",MD!J26)+1)," (",MD!L26,")")) -> ΞΙΑΡΧΟΣ Ε (Α.Ο.ΛΑΤΩ ΑΓ.ΝΙΚΟΛΑΟΥ)
B16: =Setup!$B$8 -> Α12 | C16: =IF(OR(MD!J27="bye",MD!J27="LWD"),"",CONCATENATE(LEFT(MD!J27,FIND(" ",MD!J27)+1)," (",MD!L27,")")) ->  | E16: =IF(OR(MD!J28="bye",MD!J28="LWD"), "", CONCATENATE(LEFT(MD!J28,FIND(" ",MD!J28)+1)," (",MD!L28,")")) -> ΖΕΡΒΟΣ Σ (Ο.Α.ΧΑΝΙΩΝ)
A17: όχι πριν | B17: =Setup!$B$8 -> Α12 | C17: =IF(OR(MD!J29="bye",MD!J29="LWD"),"",CONCATENATE(LEFT(MD!J29,FIND(" ",MD!J29)+1)," (",MD!L29,")")) -> ΣΠΥΡΟΠΟΥΛΟΣ Ν (Ο.Α.ΡΕΘΥΜΝΟΥ) | D17: - | E17: =IF(OR(MD!J30="bye",MD!J30="LWD"), "", CONCATENATE(LEFT(MD!J30,FIND(" ",MD!J30)+1)," (",MD!L30,")")) -> ΝΕΚΤΑΡΙΟΣ Α (ΗΡΑΚΛΕΙΟ Ο.Α.& Α.)
B18: =Setup!$B$8 -> Α12 | C18: =IF(OR(MD!J31="bye",MD!J31="LWD"),"",CONCATENATE(LEFT(MD!J31,FIND(" ",MD!J31)+1)," (",MD!L31,")")) -> ΤΑΒΕΡΝΑΡΑΚΗΣ Ε (ΗΡΑΚΛΕΙΟ Ο.Α.& Α.) | D18: - | E18: =IF(OR(MD!J32="bye",MD!J32="LWD"), "", CONCATENATE(LEFT(MD!J32,FIND(" ",MD!J32)+1)," (",MD!L32,")")) -> ΤΣΙΤΟΥΝΗΣ Μ (ΦΙΛΙΑ Τ.Κ.)
B19: =Setup!$B$8 -> Α12 | C19: =IF(OR(MD!J33="bye",MD!J33="LWD"),"",CONCATENATE(LEFT(MD!J33,FIND(" ",MD!J33)+1)," (",MD!L33,")")) -> ΚΟΚΚΑΛΗΣ Σ (Γ.Σ.ΛΙΒΥΚΟΣ ΙΕΡΑΠΕΤΡΑΣ) | D19: - | E19: =IF(OR(MD!J34="bye",MD!J34="LWD"), "", CONCATENATE(LEFT(MD!J34,FIND(" ",MD!J34)+1)," (",MD!L34,")")) -> ΚΑΫΜΕΝΑΚΗΣ Α (Ο.Α.ΧΑΝΙΩΝ)
B20: =Setup!$B$8 -> Α12 | C20: =IF(OR(MD!J35="bye",MD!J35="LWD"),"",CONCATENATE(LEFT(MD!J35,FIND(" ",MD!J35)+1)," (",MD!L35,")")) ->  | E20: =IF(OR(MD!J36="bye",MD!J36="LWD"), "", CONCATENATE(LEFT(MD!J36,FIND(" ",MD!J36)+1)," (",MD!L36,")")) -> ΜΑΝΔΑΛΕΝΑΚΗΣ Α (ΗΡΑΚΛΕΙΟ Ο.Α.& Α.)
A22: Πρόγραμμα αγώνων | E22: Round 2 | F22: i
A23: ΩΡΑ | B23: Κτγρ. | C23: Αθλητής-Σύλλογος | E23: Αθλητής-Σύλλογος
A24: Έναρξη | B24: =Setup!$B$8 -> Α12 | C24: =IF(MD!M5="", "", IF(MD!M5=1, CONCATENATE(LEFT(MD!J5,FIND(" ",MD!J5)+1)," (",MD!L5,")"),CONCATENATE(LEFT(MD!J6,FIND(" ",MD!J6)+1)," (",MD!L6,")"))) -> ΜΑΤΣΑΜΑΚΗΣ Ε (Ο.Α.ΧΑΝΙΩΝ) | D24: =IF(OR(C24="",E24="")," ","-") -> - | E24: =IF(MD!M7="", "", IF(MD!M7=1, CONCATENATE(LEFT(MD!J7,FIND(" ",MD!J7)+1)," (",MD!L7,")"),CONCATENATE(LEFT(MD!J8,FIND(" ",MD!J8)+1)," (",MD!L8,")"))) -> ΒΟΛΤΥΡΑΚΗΣ Ε (Ο.Α.ΧΑΝΙΩΝ)
B25: =Setup!$B$8 -> Α12 | C25: =IF(MD!M9="", "", IF(MD!M9=1, CONCATENATE(LEFT(MD!J9,FIND(" ",MD!J9)+1)," (",MD!L9,")"),CONCATENATE(LEFT(MD!J10,FIND(" ",MD!J10)+1)," (",MD!L10,")"))) -> ΠΕΡΔΙΚΑΚΗΣ Ε (Γ.Σ.ΛΙΒΥΚΟΣ ΙΕΡΑΠΕΤΡΑΣ) | D25: - | E25: =IF(MD!M11="", "", IF(MD!M11=1, CONCATENATE(LEFT(MD!J11,FIND(" ",MD!J11)+1)," (",MD!L11,")"),CONCATENATE(LEFT(MD!J12,FIND(" ",MD!J12)+1)," (",MD!L12,")"))) -> ΠΕΤΡΑΚΗΣ Σ (Ο.Α.ΧΑΝΙΩΝ)
B26: =Setup!$B$8 -> Α12 | C26: =IF(MD!M13="", "", IF(MD!M13=1, CONCATENATE(LEFT(MD!J13,FIND(" ",MD!J13)+1)," (",MD!L13,")"),CONCATENATE(LEFT(MD!J14,FIND(" ",MD!J14)+1)," (",MD!L14,")"))) -> ΓΕΝΝΑΡΑΚΗΣ Ν (ΗΡΑΚΛΕΙΟ Ο.Α.& Α.) | D26: - | E26: =IF(MD!M15="", "", IF(MD!M15=1, CONCATENATE(LEFT(MD!J15,FIND(" ",MD!J15)+1)," (",MD!L15,")"),CONCATENATE(LEFT(MD!J16,FIND(" ",MD!J16)+1)," (",MD!L16,")"))) -> ΜΠΟΥΝΑΚΗΣ Δ (ΗΡΑΚΛΕΙΟ Ο.Α.& Α.)
B27: =Setup!$B$8 -> Α12 | C27: =IF(MD!M17="", "", IF(MD!M17=1, CONCATENATE(LEFT(MD!J17,FIND(" ",MD!J17)+1)," (",MD!L17,")"),CONCATENATE(LEFT(MD!J18,FIND(" ",MD!J18)+1)," (",MD!L18,")"))) -> ΚΑΡΑΚΩΣΤΑΣ Σ (ΗΡΑΚΛΕΙΟ Ο.Α.& Α.) | D27: - | E27: =IF(MD!M19="", "", IF(MD!M19=1, CONCATENATE(LEFT(MD!J19,FIND(" ",MD!J19)+1)," (",MD!L19,")"),CONCATENATE(LEFT(MD!J20,FIND(" ",MD!J20)+1)," (",MD!L20,")"))) -> ΚΟΚΚΙΝΑΚΗΣ Γ (Ο.Α.ΧΑΝΙΩΝ)
A28: όχι πριν | B28: =Setup!$B$8 -> Α12 | C28: =IF(MD!M21="", "", IF(MD!M21=1, CONCATENATE(LEFT(MD!J21,FIND(" ",MD!J21)+1)," (",MD!L21,")"),CONCATENATE(LEFT(MD!J22,FIND(" ",MD!J22)+1)," (",MD!L22,")"))) -> ΧΑΛΑΚΑΤΕΒΑΚΗΣ Α (Ο.Α.ΧΑΝΙΩΝ) | D28: - | E28: =IF(MD!M23="", "", IF(MD!M23=1, CONCATENATE(LEFT(MD!J23,FIND(" ",MD!J23)+1)," (",MD!L23,")"),CONCATENATE(LEFT(MD!J24,FIND(" ",MD!J24)+1)," (",MD!L24,")"))) -> ΣΤΡΟΜΠΑ Ι (Ο.Α.ΧΑΝΙΩΝ)
B29: =Setup!$B$8 -> Α12 | C29: =IF(MD!M25="", "", IF(MD!M25=1, CONCATENATE(LEFT(MD!J25,FIND(" ",MD!J25)+1)," (",MD!L25,")"),CONCATENATE(LEFT(MD!J26,FIND(" ",MD!J26)+1)," (",MD!L26,")"))) -> ΜΑΡΑΚΗΣ Μ (Ο.Α.ΧΑΝΙΩΝ) | D29: - | E29: =IF(MD!M27="", "", IF(MD!M27=1, CONCATENATE(LEFT(MD!J27,FIND(" ",MD!J27)+1)," (",MD!L27,")"),CONCATENATE(LEFT(MD!J28,FIND(" ",MD!J28)+1)," (",MD!L28,")"))) -> ΖΕΡΒΟΣ Σ (Ο.Α.ΧΑΝΙΩΝ)
B30: =Setup!$B$8 -> Α12 | C30: =IF(MD!M29="", "", IF(MD!M29=1, CONCATENATE(LEFT(MD!J29,FIND(" ",MD!J29)+1)," (",MD!L29,")"),CONCATENATE(LEFT(MD!J30,FIND(" ",MD!J30)+1)," (",MD!L30,")"))) -> ΣΠΥΡΟΠΟΥΛΟΣ Ν (Ο.Α.ΡΕΘΥΜΝΟΥ) | D30: - | E30: =IF(MD!M31="", "", IF(MD!M31=1, CONCATENATE(LEFT(MD!J31,FIND(" ",MD!J31)+1)," (",MD!L31,")"),CONCATENATE(LEFT(MD!J32,FIND(" ",MD!J32)+1)," (",MD!L32,")"))) -> ΤΑΒΕΡΝΑΡΑΚΗΣ Ε (ΗΡΑΚΛΕΙΟ Ο.Α.& Α.)
B31: =Setup!$B$8 -> Α12 | C31: =IF(MD!M33="", "", IF(MD!M33=1, CONCATENATE(LEFT(MD!J33,FIND(" ",MD!J33)+1)," (",MD!L33,")"),CONCATENATE(LEFT(MD!J34,FIND(" ",MD!J34)+1)," (",MD!L34,")"))) -> ΚΑΫΜΕΝΑΚΗΣ Α (Ο.Α.ΧΑΝΙΩΝ) | D31: - | E31: =IF(MD!M35="", "", IF(MD!M35=1, CONCATENATE(LEFT(MD!J35,FIND(" ",MD!J35)+1)," (",MD!L35,")"),CONCATENATE(LEFT(MD!J36,FIND(" ",MD!J36)+1)," (",MD!L36,")"))) -> ΜΑΝΔΑΛΕΝΑΚΗΣ Α (ΗΡΑΚΛΕΙΟ Ο.Α.& Α.)
A37: Don't Change this Worksheet !

Sheet tables
A1: RndIndx | B1: random | C1: FixRandom | F1: 1ος | G1: 2ος | H1: 3-4 | I1: 5-8 | J1: 9-16 | K1: 17-32 | P1: Category | Q1: Juniors | R1: Serniors
A2: 1 | B2: =RAND()/222 -> 0.001490244867 | C2: 0.002259164629 | E2: E1-12 | F2: 30 | G2: 25 | H2: 15 | I2: 10 | J2: 7.5 | K2: 5 | P2: Α10 | Q2: Α10 | R2: m35
A3: 2 | B3: 0.002657871167 | C3: 0.001378200434 | E3: E1-14 | F3: 60 | G3: 50 | H3: 30 | I3: 20 | J3: 15 | K3: 10 | P3: Α12 | Q3: Α12 | R3: m40
A4: 3 | B4: =RAND()/222 -> 0.001118649411 | C4: 0.002792129153 | E4: E1-16 | F4: 120 | G4: 100 | H4: 60 | I4: 40 | J4: 30 | K4: 20 | P4: Α14 | Q4: Α14 | R4: m45
A5: 4 | B5: =RAND()/222 -> 0.0002791277121 | C5: 0.003772078197 | E5: E1-18 | F5: 150 | G5: 125 | H5: 75 | I5: 50 | J5: 37.5 | K5: 25 | P5: Α16 | Q5: Α16 | R5: m50
A6: 5 | B6: =RAND()/222 -> 0.003439461413 | C6: 0.001555645608 | E6: E2-12 | F6: 15 | G6: 12.5 | H6: 7.5 | I6: 5 | J6: 4 | K6: 2.5 | P6: Α18 | Q6: Α18 | R6: m55
A7: 6 | B7: =RAND()/222 -> 0.0006216042312 | C7: 0.003670153316 | E7: E2-14 | F7: 30 | G7: 25 | H7: 15 | I7: 10 | J7: 8 | K7: 5 | P7: Κ10 | Q7: Κ10 | R7: m60
A8: 7 | B8: =RAND()/222 -> 0.003808086779 | C8: 0.002871469878 | E8: E2-16 | F8: 60 | G8: 50 | H8: 30 | I8: 20 | J8: 16 | K8: 10 | P8: Κ12 | Q8: Κ12 | R8: m65
A9: 8 | B9: 0.0002152789827 | C9: 0.0005132963931 | E9: E3-12 | F9: 6 | G9: 5 | H9: 3 | I9: 2 | J9: 1.5 | K9: 1 | P9: Κ14 | Q9: Κ14 | R9: m70
A10: 9 | B10: 0.002227433626 | C10: 0.003723098748 | E10: E3-14 | F10: 12 | G10: 10 | H10: 6 | I10: 4 | J10: 3 | K10: 2 | P10: Κ16 | Q10: Κ16 | R10: m75
A11: 10 | B11: 0.0008754275321 | C11: 0.003737290436 | E11: E3-16 | F11: 24 | G11: 20 | H11: 12 | I11: 8 | J11: 6 | K11: 4 | P11: Κ18 | Q11: Κ18 | R11: w35
A12: 11 | B12: 0.002120801299 | C12: 0.0002269881328 | E12: E4-12 | F12: 3 | G12: 2.5 | H12: 1.5 | I12: 1 | J12: 0.75 | K12: 0.5 | P12: ΑΝΔ | Q12: ΑΝΔ | R12: w40
A13: 12 | B13: 0.0001590441008 | C13: 0.000428571854 | E13: E4-14 | F13: 6 | G13: 5 | H13: 3 | I13: 2 | J13: 1.5 | K13: 1 | P13: ΓΥΝ | Q13: ΓΥΝ | R13: w45
A14: 13 | B14: 0.00199467074 | C14: 0.001386922343 | E14: E4-16 | F14: 12 | G14: 10 | H14: 6 | I14: 4 | J14: 3 | K14: 2 | P14: - | Q14: - | R14: w50
A15: 14 | B15: 0.0005355420073 | C15: 0.001070344146 | P15: - | Q15: - | R15: w55
A16: 15 | B16: 0.001687827548 | C16: 0.003112055596 | P16: - | Q16: - | R16: -
A17: 16 | B17: 0.002647441678 | C17: 0.003357696022
A18: 17 | B18: 0.004228524219 | C18: 0.000572284311
A19: 18 | B19: 0.000969592978 | C19: 0.0008721719894
A20: 19 | B20: 0.002004667535 | C20: 0.0005531534999
A21: 20 | B21: 0.002933162814 | C21: 0.002319063447
A22: 21 | B22: 0.004420616213 | C22: 0.002007376119
A23: 22 | B23: 0.003248234823 | C23: 0.001636881073
A24: 23 | B24: 0.003656671766 | C24: 0.002625989945
A25: 24 | B25: 0.003209187941 | C25: 0.002238870227
A26: 25 | B26: 0.003967515054 | C26: 0.003975675464
A27: 26 | B27: 0.0009688284526 | C27: 0.0007973197529
A28: 27 | B28: 0.003984123716 | C28: 0.001776597738
A29: 28 | B29: 0.0006061869853 | C29: 0.001262502627
A30: 29 | B30: 0.002689308938 | C30: 0.003104409675
A31: 30 | B31: 0.0008213075321 | C31: 0.0002623477704
A32: 31 | B32: 0.0007598569734 | C32: 0.002895205983
A33: 32 | B33: 4.388530631e-05 | C33: 0.00258709824

Sheet matches
A1: round | B1: winner | D1: looser | F1: score | H1: Player | I1: Position | K1: Set-up
A2: 32 | B2: =IF(OR(MD!$M$5 =1,MD!$M$5 =2), IF(MD!$M$5 =1,MD!$I$5,MD!$I$6),"#") -> 31617 | C2: =TRIM(LEFT(VLOOKUP(B2,DrawPrep!$C$3:$D$34,2,FALSE),FIND(" ",VLOOKUP(B2,DrawPrep!$C$3:$D$34,2,FALSE),1)-1)) -> ΜΑΤΣΑΜΑΚΗΣ | D2: =IF(OR(MD!$M$5 =1,MD!$M$5 =2), IF(MD!$M$5 =2,MD!$I$5,MD!$I$6),"#") -> 0 | E2: =TRIM(LEFT(VLOOKUP(D2,DrawPrep!$C$3:$D$34,2,FALSE),FIND(" ",VLOOKUP(D2,DrawPrep!$C$3:$D$34,2,FALSE),1)-1)) ->  | F2: =MD!O6 -> 0 | H2: =B32 -> 31617 | I2: 1st | K2: title: | L2: =Setup!$B$4 -> 3ο Ε3 2016
A3: 32 | B3: =IF(OR(MD!$M$7 =1,MD!$M$7 =2), IF(MD!$M$7 =1,MD!$I$7,MD!$I$8),"#") -> 33295 | C3: =TRIM(LEFT(VLOOKUP(B3,DrawPrep!$C$3:$D$34,2,FALSE),FIND(" ",VLOOKUP(B3,DrawPrep!$C$3:$D$34,2,FALSE),1)-1)) -> ΒΟΛΤΥΡΑΚΗΣ | D3: =IF(OR(MD!$M$7 =1,MD!$M$7 =2), IF(MD!$M$7 =2,MD!$I$7,MD!$I$8),"#") -> 37805 | E3: =TRIM(LEFT(VLOOKUP(D3,DrawPrep!$C$3:$D$34,2,FALSE),FIND(" ",VLOOKUP(D3,DrawPrep!$C$3:$D$34,2,FALSE),1)-1)) -> ΚΩΣΤΑΚΗΣ | F3: =MD!O8 -> 54(4) 42 | H3: =D32 -> 36263 | I3: 2nd | K3: grade: | L3: =Setup!$B$5 -> e3
A4: 32 | B4: =IF(OR(MD!$M$9 =1,MD!$M$9 =2), IF(MD!$M$9 =1,MD!$I$9,MD!$I$10),"#") -> 36550 | C4: =TRIM(LEFT(VLOOKUP(B4,DrawPrep!$C$3:$D$34,2,FALSE),FIND(" ",VLOOKUP(B4,DrawPrep!$C$3:$D$34,2,FALSE),1)-1)) -> ΠΕΡΔΙΚΑΚΗΣ | D4: =IF(OR(MD!$M$9 =1,MD!$M$9 =2), IF(MD!$M$9 =2,MD!$I$9,MD!$I$10),"#") -> 37561 | E4: =TRIM(LEFT(VLOOKUP(D4,DrawPrep!$C$3:$D$34,2,FALSE),FIND(" ",VLOOKUP(D4,DrawPrep!$C$3:$D$34,2,FALSE),1)-1)) -> ΦΟΥΝΤΟΥΛΑΚΗΣ | F4: =MD!O10 -> 40 30 ret | H4: =D30 -> 36456 | I4: 3_4 | K4: age: | L4: =Setup!$B$6 -> 12
A5: 32 | B5: =IF(OR(MD!$M$11=1,MD!$M$11=2), IF(MD!$M$11=1,MD!$I$11,MD!$I$12),"#") -> 32350 | C5: =TRIM(LEFT(VLOOKUP(B5,DrawPrep!$C$3:$D$34,2,FALSE),FIND(" ",VLOOKUP(B5,DrawPrep!$C$3:$D$34,2,FALSE),1)-1)) -> ΠΕΤΡΑΚΗΣ | D5: =IF(OR(MD!$M$11=1,MD!$M$11=2), IF(MD!$M$11=2,MD!$I$11,MD!$I$12),"#") -> 0 | E5: =TRIM(LEFT(VLOOKUP(D5,DrawPrep!$C$3:$D$34,2,FALSE),FIND(" ",VLOOKUP(D5,DrawPrep!$C$3:$D$34,2,FALSE),1)-1)) ->  | F5: =MD!O12 -> 0 | H5: =D31 -> 33396 | I5: 3_4 | K5: category: | L5: =Setup!$B$8 -> Α12
A6: 32 | B6: =IF(OR(MD!$M$13=1,MD!$M$13=2), IF(MD!$M$13=1,MD!$I$13,MD!$I$14),"#") -> 36456 | C6: =TRIM(LEFT(VLOOKUP(B6,DrawPrep!$C$3:$D$34,2,FALSE),FIND(" ",VLOOKUP(B6,DrawPrep!$C$3:$D$34,2,FALSE),1)-1)) -> ΓΕΝΝΑΡΑΚΗΣ | D6: =IF(OR(MD!$M$13=1,MD!$M$13=2), IF(MD!$M$13=2,MD!$I$13,MD!$I$14),"#") -> 0 | E6: =TRIM(LEFT(VLOOKUP(D6,DrawPrep!$C$3:$D$34,2,FALSE),FIND(" ",VLOOKUP(D6,DrawPrep!$C$3:$D$34,2,FALSE),1)-1)) ->  | F6: =MD!O14 -> 0 | H6: =D26 -> 32350 | I6: 5_8 | K6: period: | L6: =Setup!$B$9&"-"&Setup!$B$10 -> 22-23 Οκτωβρίου
A7: 32 | B7: =IF(OR(MD!$M$15=1,MD!$M$15=2), IF(MD!$M$15=1,MD!$I$15,MD!$I$16),"#") -> 38042 | C7: =TRIM(LEFT(VLOOKUP(B7,DrawPrep!$C$3:$D$34,2,FALSE),FIND(" ",VLOOKUP(B7,DrawPrep!$C$3:$D$34,2,FALSE),1)-1)) -> ΜΠΟΥΝΑΚΗΣ | D7: =IF(OR(MD!$M$15=1,MD!$M$15=2), IF(MD!$M$15=2,MD!$I$15,MD!$I$16),"#") -> 37803 | E7: =TRIM(LEFT(VLOOKUP(D7,DrawPrep!$C$3:$D$34,2,FALSE),FIND(" ",VLOOKUP(D7,DrawPrep!$C$3:$D$34,2,FALSE),1)-1)) -> ΚΑΛΑΤΖΗΣ | F7: =MD!O16 -> 53 54(4) | H7: =D27 -> 37665 | I7: 5_8 | K7: organizer: | L7: =Setup!$B$3 -> Ζ΄ ΕΝΩΣΗ
A8: 32 | B8: =IF(OR(MD!$M$17=1,MD!$M$17=2), IF(MD!$M$17=1,MD!$I$17,MD!$I$18),"#") -> 37801 | C8: =TRIM(LEFT(VLOOKUP(B8,DrawPrep!$C$3:$D$34,2,FALSE),FIND(" ",VLOOKUP(B8,DrawPrep!$C$3:$D$34,2,FALSE),1)-1)) -> ΚΑΡΑΚΩΣΤΑΣ | D8: =IF(OR(MD!$M$17=1,MD!$M$17=2), IF(MD!$M$17=2,MD!$I$17,MD!$I$18),"#") -> 37800 | E8: =TRIM(LEFT(VLOOKUP(D8,DrawPrep!$C$3:$D$34,2,FALSE),FIND(" ",VLOOKUP(D8,DrawPrep!$C$3:$D$34,2,FALSE),1)-1)) -> ΒΕΛΕΝΤΑΚΗΣ | F8: =MD!O18 -> 40 40 | H8: =D28 -> 37562 | I8: 5_8
A9: 32 | B9: =IF(OR(MD!$M$19=1,MD!$M$19=2), IF(MD!$M$19=1,MD!$I$19,MD!$I$20),"#") -> 37665 | C9: =TRIM(LEFT(VLOOKUP(B9,DrawPrep!$C$3:$D$34,2,FALSE),FIND(" ",VLOOKUP(B9,DrawPrep!$C$3:$D$34,2,FALSE),1)-1)) -> ΚΟΚΚΙΝΑΚΗΣ | D9: =IF(OR(MD!$M$19=1,MD!$M$19=2), IF(MD!$M$19=2,MD!$I$19,MD!$I$20),"#") -> 37990 | E9: =TRIM(LEFT(VLOOKUP(D9,DrawPrep!$C$3:$D$34,2,FALSE),FIND(" ",VLOOKUP(D9,DrawPrep!$C$3:$D$34,2,FALSE),1)-1)) -> ΝΙΝΟΣ | F9: =MD!O20 -> 4040 | H9: =D29 -> 35629 | I9: 5_8
A10: 32 | B10: =IF(OR(MD!$M$21=1,MD!$M$21=2), IF(MD!$M$21=1,MD!$I$21,MD!$I$22),"#") -> 37032 | C10: =TRIM(LEFT(VLOOKUP(B10,DrawPrep!$C$3:$D$34,2,FALSE),FIND(" ",VLOOKUP(B10,DrawPrep!$C$3:$D$34,2,FALSE),1)-1)) -> ΧΑΛΑΚΑΤΕΒΑΚΗΣ | D10: =IF(OR(MD!$M$21=1,MD!$M$21=2), IF(MD!$M$21=2,MD!$I$21,MD!$I$22),"#") -> 0 | E10: =TRIM(LEFT(VLOOKUP(D10,DrawPrep!$C$3:$D$34,2,FALSE),FIND(" ",VLOOKUP(D10,DrawPrep!$C$3:$D$34,2,FALSE),1)-1)) ->  | F10: =MD!O22 -> 0 | H10: =D18 -> 33295 | I10: 9_16
A11: 32 | B11: =IF(OR(MD!$M$23=1,MD!$M$23=2), IF(MD!$M$23=1,MD!$I$23,MD!$I$24),"#") -> 37562 | C11: =TRIM(LEFT(VLOOKUP(B11,DrawPrep!$C$3:$D$34,2,FALSE),FIND(" ",VLOOKUP(B11,DrawPrep!$C$3:$D$34,2,FALSE),1)-1)) -> ΣΤΡΟΜΠΑ | D11: =IF(OR(MD!$M$23=1,MD!$M$23=2), IF(MD!$M$23=2,MD!$I$23,MD!$I$24),"#") -> 33835 | E11: =TRIM(LEFT(VLOOKUP(D11,DrawPrep!$C$3:$D$34,2,FALSE),FIND(" ",VLOOKUP(D11,DrawPrep!$C$3:$D$34,2,FALSE),1)-1)) -> ΒΕΓΟΠΟΥΛΟΣ | F11: =MD!O24 -> 40 42 | H11: =D19 -> 36550 | I11: 9_16
A12: 32 | B12: =IF(OR(MD!$M$25=1,MD!$M$25=2), IF(MD!$M$25=1,MD!$I$25,MD!$I$26),"#") -> 37669 | C12: =TRIM(LEFT(VLOOKUP(B12,DrawPrep!$C$3:$D$34,2,FALSE),FIND(" ",VLOOKUP(B12,DrawPrep!$C$3:$D$34,2,FALSE),1)-1)) -> ΜΑΡΑΚΗΣ | D12: =IF(OR(MD!$M$25=1,MD!$M$25=2), IF(MD!$M$25=2,MD!$I$25,MD!$I$26),"#") -> 37471 | E12: =TRIM(LEFT(VLOOKUP(D12,DrawPrep!$C$3:$D$34,2,FALSE),FIND(" ",VLOOKUP(D12,DrawPrep!$C$3:$D$34,2,FALSE),1)-1)) -> ΞΙΑΡΧΟΣ | F12: =MD!O26 -> 40 54(0) | H12: 38042 | I12: 9_16
A13: 32 | B13: =IF(OR(MD!$M$27=1,MD!$M$27=2), IF(MD!$M$27=1,MD!$I$27,MD!$I$28),"#") -> 33396 | C13: =TRIM(LEFT(VLOOKUP(B13,DrawPrep!$C$3:$D$34,2,FALSE),FIND(" ",VLOOKUP(B13,DrawPrep!$C$3:$D$34,2,FALSE),1)-1)) -> ΖΕΡΒΟΣ | D13: =IF(OR(MD!$M$27=1,MD!$M$27=2), IF(MD!$M$27=2,MD!$I$27,MD!$I$28),"#") -> 0 | E13: =TRIM(LEFT(VLOOKUP(D13,DrawPrep!$C$3:$D$34,2,FALSE),FIND(" ",VLOOKUP(D13,DrawPrep!$C$3:$D$34,2,FALSE),1)-1)) ->  | F13: =MD!O28 -> 0 | H13: 37801 | I13: 9_16
A14: 32 | B14: =IF(OR(MD!$M$29=1,MD!$M$29=2), IF(MD!$M$29=1,MD!$I$29,MD!$I$30),"#") -> 35629 | C14: =TRIM(LEFT(VLOOKUP(B14,DrawPrep!$C$3:$D$34,2,FALSE),FIND(" ",VLOOKUP(B14,DrawPrep!$C$3:$D$34,2,FALSE),1)-1)) -> ΣΠΥΡΟΠΟΥΛΟΣ | D14: =IF(OR(MD!$M$29=1,MD!$M$29=2), IF(MD!$M$29=2,MD!$I$29,MD!$I$30),"#") -> 38017 | E14: =TRIM(LEFT(VLOOKUP(D14,DrawPrep!$C$3:$D$34,2,FALSE),FIND(" ",VLOOKUP(D14,DrawPrep!$C$3:$D$34,2,FALSE),1)-1)) -> ΝΕΚΤΑΡΙΟΣ | F14: =MD!O30 -> 40 40 | H14: 37032 | I14: 9_16
A15: 32 | B15: =IF(OR(MD!$M$31=1,MD!$M$31=2), IF(MD!$M$31=1,MD!$I$31,MD!$I$32),"#") -> 38697 | C15: =TRIM(LEFT(VLOOKUP(B15,DrawPrep!$C$3:$D$34,2,FALSE),FIND(" ",VLOOKUP(B15,DrawPrep!$C$3:$D$34,2,FALSE),1)-1)) -> ΤΑΒΕΡΝΑΡΑΚΗΣ | D15: =IF(OR(MD!$M$31=1,MD!$M$31=2), IF(MD!$M$31=2,MD!$I$31,MD!$I$32),"#") -> 33985 | E15: =TRIM(LEFT(VLOOKUP(D15,DrawPrep!$C$3:$D$34,2,FALSE),FIND(" ",VLOOKUP(D15,DrawPrep!$C$3:$D$34,2,FALSE),1)-1)) -> ΤΣΙΤΟΥΝΗΣ | F15: =MD!O32 -> 53 42 | H15: 37669 | I15: 9_16
A16: 32 | B16: =IF(OR(MD!$M$33=1,MD!$M$33=2), IF(MD!$M$33=1,MD!$I$33,MD!$I$34),"#") -> 37664 | C16: =TRIM(LEFT(VLOOKUP(B16,DrawPrep!$C$3:$D$34,2,FALSE),FIND(" ",VLOOKUP(B16,DrawPrep!$C$3:$D$34,2,FALSE),1)-1)) -> ΚΑΫΜΕΝΑΚΗΣ | D16: =IF(OR(MD!$M$33=1,MD!$M$33=2), IF(MD!$M$33=2,MD!$I$33,MD!$I$34),"#") -> 36616 | E16: =TRIM(LEFT(VLOOKUP(D16,DrawPrep!$C$3:$D$34,2,FALSE),FIND(" ",VLOOKUP(D16,DrawPrep!$C$3:$D$34,2,FALSE),1)-1)) -> ΚΟΚΚΑΛΗΣ | F16: =MD!O34 -> 40 42 | H16: 38697 | I16: 9_16
A17: 32 | B17: =IF(OR(MD!$M$35=1,MD!$M$35=2), IF(MD!$M$35=1,MD!$I$35,MD!$I$36),"#") -> 36263 | C17: =TRIM(LEFT(VLOOKUP(B17,DrawPrep!$C$3:$D$34,2,FALSE),FIND(" ",VLOOKUP(B17,DrawPrep!$C$3:$D$34,2,FALSE),1)-1)) -> ΜΑΝΔΑΛΕΝΑΚΗΣ | D17: =IF(OR(MD!$M$35=1,MD!$M$35=2), IF(MD!$M$35=2,MD!$I$35,MD!$I$36),"#") -> 0 | E17: =TRIM(LEFT(VLOOKUP(D17,DrawPrep!$C$3:$D$34,2,FALSE),FIND(" ",VLOOKUP(D17,DrawPrep!$C$3:$D$34,2,FALSE),1)-1)) ->  | F17: =MD!O36 -> 0 | H17: 37664 | I17: 9_16
A18: 16 | B18: =IF(OR(MD!$P$6 =1,MD!$P$6 =2), IF(MD!$P$6 =1,MD!$N$5,MD!$N$7),"#") -> 31617 | C18: =TRIM(LEFT(VLOOKUP(B18,DrawPrep!$C$3:$D$34,2,FALSE),FIND(" ",VLOOKUP(B18,DrawPrep!$C$3:$D$34,2,FALSE),1)-1)) -> ΜΑΤΣΑΜΑΚΗΣ | D18: =IF(OR(MD!$P$6 =1,MD!$P$6 =2), IF(MD!$P$6 =2,MD!$N$5,MD!$N$7),"#") -> 33295 | E18: =TRIM(LEFT(VLOOKUP(D18,DrawPrep!$C$3:$D$34,2,FALSE),FIND(" ",VLOOKUP(D18,DrawPrep!$C$3:$D$34,2,FALSE),1)-1)) -> ΒΟΛΤΥΡΑΚΗΣ | F18: =MD!R7 -> 40 40 | H18: =D2 -> 0 | I18: 17_32
A19: 16 | B19: =IF(OR(MD!$P$10=1,MD!$P$10=2), IF(MD!$P$10=1,MD!$N$9,MD!$N$11),"#") -> 32350 | C19: =TRIM(LEFT(VLOOKUP(B19,DrawPrep!$C$3:$D$34,2,FALSE),FIND(" ",VLOOKUP(B19,DrawPrep!$C$3:$D$34,2,FALSE),1)-1)) -> ΠΕΤΡΑΚΗΣ | D19: =IF(OR(MD!$P$10=1,MD!$P$10=2), IF(MD!$P$10=2,MD!$N$9,MD!$N$11),"#") -> 36550 | E19: =TRIM(LEFT(VLOOKUP(D19,DrawPrep!$C$3:$D$34,2,FALSE),FIND(" ",VLOOKUP(D19,DrawPrep!$C$3:$D$34,2,FALSE),1)-1)) -> ΠΕΡΔΙΚΑΚΗΣ | F19: =MD!R11 -> 42 41 | H19: =D3 -> 37805 | I19: 17_32
A20: 16 | B20: =IF(OR(MD!$P$14=1,MD!$P$14=2), IF(MD!$P$14=1,MD!$N$13,MD!$N$15),"#") -> 36456 | C20: =TRIM(LEFT(VLOOKUP(B20,DrawPrep!$C$3:$D$34,2,FALSE),FIND(" ",VLOOKUP(B20,DrawPrep!$C$3:$D$34,2,FALSE),1)-1)) -> ΓΕΝΝΑΡΑΚΗΣ | D20: =IF(OR(MD!$P$14=1,MD!$P$14=2), IF(MD!$P$14=2,MD!$N$13,MD!$N$15),"#") -> 38042 | E20: =TRIM(LEFT(VLOOKUP(D20,DrawPrep!$C$3:$D$34,2,FALSE),FIND(" ",VLOOKUP(D20,DrawPrep!$C$3:$D$34,2,FALSE),1)-1)) -> ΜΠΟΥΝΑΚΗΣ | F20: =MD!R15 -> 42 40 | H20: 37561 | I20: 17_32
A21: 16 | B21: =IF(OR(MD!$P$18=1,MD!$P$18=2), IF(MD!$P$18=1,MD!$N$17,MD!$N$19),"#") -> 37665 | C21: =TRIM(LEFT(VLOOKUP(B21,DrawPrep!$C$3:$D$34,2,FALSE),FIND(" ",VLOOKUP(B21,DrawPrep!$C$3:$D$34,2,FALSE),1)-1)) -> ΚΟΚΚΙΝΑΚΗΣ | D21: =IF(OR(MD!$P$18=1,MD!$P$18=2), IF(MD!$P$18=2,MD!$N$17,MD!$N$19),"#") -> 37801 | E21: =TRIM(LEFT(VLOOKUP(D21,DrawPrep!$C$3:$D$34,2,FALSE),FIND(" ",VLOOKUP(D21,DrawPrep!$C$3:$D$34,2,FALSE),1)-1)) -> ΚΑΡΑΚΩΣΤΑΣ | F21: =MD!R19 -> 40 41 | H21: 0 | I21: 17_32
A22: 16 | B22: =IF(OR(MD!$P$22=1,MD!$P$22=2), IF(MD!$P$22=1,MD!$N$21,MD!$N$23),"#") -> 37562 | C22: =TRIM(LEFT(VLOOKUP(B22,DrawPrep!$C$3:$D$34,2,FALSE),FIND(" ",VLOOKUP(B22,DrawPrep!$C$3:$D$34,2,FALSE),1)-1)) -> ΣΤΡΟΜΠΑ | D22: =IF(OR(MD!$P$22=1,MD!$P$22=2), IF(MD!$P$22=2,MD!$N$21,MD!$N$23),"#") -> 37032 | E22: =TRIM(LEFT(VLOOKUP(D22,DrawPrep!$C$3:$D$34,2,FALSE),FIND(" ",VLOOKUP(D22,DrawPrep!$C$3:$D$34,2,FALSE),1)-1)) -> ΧΑΛΑΚΑΤΕΒΑΚΗΣ | F22: =MD!R23 -> 42 14 (10-8) | H22: 0 | I22: 17_32
A23: 16 | B23: =IF(OR(MD!$P$26=1,MD!$P$26=2), IF(MD!$P$26=1,MD!$N$25,MD!$N$27),"#") -> 33396 | C23: =TRIM(LEFT(VLOOKUP(B23,DrawPrep!$C$3:$D$34,2,FALSE),FIND(" ",VLOOKUP(B23,DrawPrep!$C$3:$D$34,2,FALSE),1)-1)) -> ΖΕΡΒΟΣ | D23: =IF(OR(MD!$P$26=1,MD!$P$26=2), IF(MD!$P$26=2,MD!$N$25,MD!$N$27),"#") -> 37669 | E23: =TRIM(LEFT(VLOOKUP(D23,DrawPrep!$C$3:$D$34,2,FALSE),FIND(" ",VLOOKUP(D23,DrawPrep!$C$3:$D$34,2,FALSE),1)-1)) -> ΜΑΡΑΚΗΣ | F23: =MD!R27 -> 41 42 | H23: 37803 | I23: 17_32
A24: 16 | B24: =IF(OR(MD!$P$30=1,MD!$P$30=2), IF(MD!$P$30=1,MD!$N$29,MD!$N$31),"#") -> 35629 | C24: =TRIM(LEFT(VLOOKUP(B24,DrawPrep!$C$3:$D$34,2,FALSE),FIND(" ",VLOOKUP(B24,DrawPrep!$C$3:$D$34,2,FALSE),1)-1)) -> ΣΠΥΡΟΠΟΥΛΟΣ | D24: =IF(OR(MD!$P$30=1,MD!$P$30=2), IF(MD!$P$30=2,MD!$N$29,MD!$N$31),"#") -> 38697 | E24: =TRIM(LEFT(VLOOKUP(D24,DrawPrep!$C$3:$D$34,2,FALSE),FIND(" ",VLOOKUP(D24,DrawPrep!$C$3:$D$34,2,FALSE),1)-1)) -> ΤΑΒΕΡΝΑΡΑΚΗΣ | F24: =MD!R31 -> 41 40 | H24: 37800 | I24: 17_32
A25: 16 | B25: =IF(OR(MD!$P$34=1,MD!$P$34=2), IF(MD!$P$34=1,MD!$N$33,MD!$N$35),"#") -> 36263 | C25: =TRIM(LEFT(VLOOKUP(B25,DrawPrep!$C$3:$D$34,2,FALSE),FIND(" ",VLOOKUP(B25,DrawPrep!$C$3:$D$34,2,FALSE),1)-1)) -> ΜΑΝΔΑΛΕΝΑΚΗΣ | D25: =IF(OR(MD!$P$34=1,MD!$P$34=2), IF(MD!$P$34=2,MD!$N$33,MD!$N$35),"#") -> 37664 | E25: =TRIM(LEFT(VLOOKUP(D25,DrawPrep!$C$3:$D$34,2,FALSE),FIND(" ",VLOOKUP(D25,DrawPrep!$C$3:$D$34,2,FALSE),1)-1)) -> ΚΑΫΜΕΝΑΚΗΣ | F25: =MD!R35 -> 42 42 | H25: 37990 | I25: 17_32
A26: 8 | B26: =IF(OR(MD!$S$8 =1,MD!$S$8 =2), IF(MD!$S$8 =1,MD!$Q$6,MD!$Q$10),"#") -> 31617 | C26: =TRIM(LEFT(VLOOKUP(B26,DrawPrep!$C$3:$D$34,2,FALSE),FIND(" ",VLOOKUP(B26,DrawPrep!$C$3:$D$34,2,FALSE),1)-1)) -> ΜΑΤΣΑΜΑΚΗΣ | D26: =IF(OR(MD!$S$8 =1,MD!$S$8 =2), IF(MD!$S$8 =2,MD!$Q$6,MD!$Q$10),"#") -> 32350 | E26: =TRIM(LEFT(VLOOKUP(D26,DrawPrep!$C$3:$D$34,2,FALSE),FIND(" ",VLOOKUP(D26,DrawPrep!$C$3:$D$34,2,FALSE),1)-1)) -> ΠΕΤΡΑΚΗΣ | F26: =MD!U9 -> 40 41 | H26: 0 | I26: 17_32
A27: 8 | B27: =IF(OR(MD!$S$16=1,MD!$S$16=2), IF(MD!$S$16=1,MD!$Q$14,MD!$Q$18),"#") -> 36456 | C27: =TRIM(LEFT(VLOOKUP(B27,DrawPrep!$C$3:$D$34,2,FALSE),FIND(" ",VLOOKUP(B27,DrawPrep!$C$3:$D$34,2,FALSE),1)-1)) -> ΓΕΝΝΑΡΑΚΗΣ | D27: =IF(OR(MD!$S$16=1,MD!$S$16=2), IF(MD!$S$16=2,MD!$Q$14,MD!$Q$18),"#") -> 37665 | E27: =TRIM(LEFT(VLOOKUP(D27,DrawPrep!$C$3:$D$34,2,FALSE),FIND(" ",VLOOKUP(D27,DrawPrep!$C$3:$D$34,2,FALSE),1)-1)) -> ΚΟΚΚΙΝΑΚΗΣ | F27: =MD!U17 -> 54(10) 53 | H27: 33835 | I27: 17_32
A28: 8 | B28: =IF(OR(MD!$S$24=1,MD!$S$24=2), IF(MD!$S$24=1,MD!$Q$22,MD!$Q$26),"#") -> 33396 | C28: =TRIM(LEFT(VLOOKUP(B28,DrawPrep!$C$3:$D$34,2,FALSE),FIND(" ",VLOOKUP(B28,DrawPrep!$C$3:$D$34,2,FALSE),1)-1)) -> ΖΕΡΒΟΣ | D28: =IF(OR(MD!$S$24=1,MD!$S$24=2), IF(MD!$S$24=2,MD!$Q$22,MD!$Q$26),"#") -> 37562 | E28: =TRIM(LEFT(VLOOKUP(D28,DrawPrep!$C$3:$D$34,2,FALSE),FIND(" ",VLOOKUP(D28,DrawPrep!$C$3:$D$34,2,FALSE),1)-1)) -> ΣΤΡΟΜΠΑ | F28: =MD!U25 -> 40 41 | H28: 37471 | I28: 17_32
A29: 8 | B29: =IF(OR(MD!$S$32=1,MD!$S$32=2), IF(MD!$S$32=1,MD!$Q$30,MD!$Q$34),"#") -> 36263 | C29: =TRIM(LEFT(VLOOKUP(B29,DrawPrep!$C$3:$D$34,2,FALSE),FIND(" ",VLOOKUP(B29,DrawPrep!$C$3:$D$34,2,FALSE),1)-1)) -> ΜΑΝΔΑΛΕΝΑΚΗΣ | D29: =IF(OR(MD!$S$32=1,MD!$S$32=2), IF(MD!$S$32=2,MD!$Q$30,MD!$Q$34),"#") -> 35629 | E29: =TRIM(LEFT(VLOOKUP(D29,DrawPrep!$C$3:$D$34,2,FALSE),FIND(" ",VLOOKUP(D29,DrawPrep!$C$3:$D$34,2,FALSE),1)-1)) -> ΣΠΥΡΟΠΟΥΛΟΣ | F29: =MD!U33 -> 40 40 | H29: 0 | I29: 17_32
A30: 4 | B30: =IF(OR(MD!$V$12=1,MD!$V$12=2), IF(MD!$V$12=1,MD!$T$8,MD!$T$16),"#") -> 31617 | C30: =TRIM(LEFT(VLOOKUP(B30,DrawPrep!$C$3:$D$34,2,FALSE),FIND(" ",VLOOKUP(B30,DrawPrep!$C$3:$D$34,2,FALSE),1)-1)) -> ΜΑΤΣΑΜΑΚΗΣ | D30: =IF(OR(MD!$V$12=1,MD!$V$12=2), IF(MD!$V$12=2,MD!$T$8,MD!$T$16),"#") -> 36456 | E30: =TRIM(LEFT(VLOOKUP(D30,DrawPrep!$C$3:$D$34,2,FALSE),FIND(" ",VLOOKUP(D30,DrawPrep!$C$3:$D$34,2,FALSE),1)-1)) -> ΓΕΝΝΑΡΑΚΗΣ | F30: =MD!X13 -> 61 63 | H30: 38017 | I30: 17_32
A31: 4 | B31: =IF(OR(MD!$V$28=1,MD!$V$28=2), IF(MD!$V$28=1,MD!$T$24,MD!$T$32),"#") -> 36263 | C31: =TRIM(LEFT(VLOOKUP(B31,DrawPrep!$C$3:$D$34,2,FALSE),FIND(" ",VLOOKUP(B31,DrawPrep!$C$3:$D$34,2,FALSE),1)-1)) -> ΜΑΝΔΑΛΕΝΑΚΗΣ | D31: =IF(OR(MD!$V$28=1,MD!$V$28=2), IF(MD!$V$28=2,MD!$T$24,MD!$T$32),"#") -> 33396 | E31: =TRIM(LEFT(VLOOKUP(D31,DrawPrep!$C$3:$D$34,2,FALSE),FIND(" ",VLOOKUP(D31,DrawPrep!$C$3:$D$34,2,FALSE),1)-1)) -> ΖΕΡΒΟΣ | F31: =MD!X29 -> 46 76(7) 60 | H31: 33985 | I31: 17_32
A32: 2 | B32: =IF(OR(MD!$V$20=1,MD!$V$20=2), IF(MD!$V$20=1,MD!$W$12,MD!$W$28),"#") -> 31617 | C32: =TRIM(LEFT(VLOOKUP(B32,DrawPrep!$C$3:$D$34,2,FALSE),FIND(" ",VLOOKUP(B32,DrawPrep!$C$3:$D$34,2,FALSE),1)-1)) -> ΜΑΤΣΑΜΑΚΗΣ | D32: =IF(OR(MD!$V$20=1,MD!$V$20=2), IF(MD!$V$20=2,MD!$W$12,MD!$W$28),"#") -> 36263 | E32: =TRIM(LEFT(VLOOKUP(D32,DrawPrep!$C$3:$D$34,2,FALSE),FIND(" ",VLOOKUP(D32,DrawPrep!$C$3:$D$34,2,FALSE),1)-1)) -> ΜΑΝΔΑΛΕΝΑΚΗΣ | F32: =MD!X21 -> 62 62 | H32: 36616 | I32: 17_32
H33: =D17 -> 0 | I33: 17_32
